Workbook

Sheet 0. Overview
C1: Financial Forecast Workbook
C5: This workbook is designed to help you develop a financial forecast
C6: for a new constellation, where the InCubed activity focus on one (or more) IOD satellite/s.
C8: Unlike most standard financial modelling tools, this workbook does not allow you to enter financial information
C9: directly. Rather, it requires you to enter the underlying operational parameters like number of customers
C10: secured each year, unit prices, service fees and installation charges and it then calculates the resulting financial values.
C14: Version 2.2
C15: 2020-02-26
C18: Disclaimer:
C19: The user takes full responsibility for the use of this workbook.
C20: There is no implied or explicit guarantee that this workbook generates
C21: results to accurately reflect the viability of the proposed project.
A25: O. | B25: Overview - Using the Workbook to Produce a Financial Forecast
B28: Each stage is shown below and is provided in a separate worksheet in this workbook.
B30: Colour legend
C31: Cells to be filled in
C32: Blank cells will be calculated based on inputs of worksheet I-Input Data
C33: Cyan cells may be changed (e.g. to identify more in details some of the costs)
C34: Cells out of scope of your project will automatically turn grey
B36: Stage I -- Input Data
B37: Fill in all the requested fields
B39: Stage II -- Estimate Annual Revenue/Turnover
B40: Go to worksheet II-Revenues and check if assumptions are consistent with the model
B42: Stage III -- Estimate Annual Costs
B43: Go to worksheet III-Costs andand check if assumptions are consistent with the model
B45: Stage IV -- Review Resulting Profit & Loss and Cash Flow
B46: Go to worksheet IV-Profit&Loss + Cash Flow to review the forecast.
B48: Note that the worksheet IV. Profit&Loss + Cash Flow uses figures automatically calculated in the Depreciation worksheet.
B49: If the resulting forecast does not seem reasonable, then you should adjust either your assumptions about
B50: revenues, your assumptions about costs or both.
B83: The InCubed FinForecastTool is licensed under the ESA Software Community License – Type 3 - v1.1

Sheet I.Input Data
A1: I. | B1: Input Data | C1: The following numbered tables (e.g. table 0.3.) correspond to the different tables displayed in the Proposal Part 1 (Outline) of InCubed
B3: Table 0.6 Cost Breakdown per contractor
B4: Development Cycle | C4: Included in proposed activity? | D4: Start | E4: Conclusion | F4: Company/ Organisation | G4: Status (e.g. University, SME) | H4: Country | I4: Cost kEur | J4: Requested ESA funding (Price) kEur | K4: Requested ESA funding (Price) % of Cost | L4: Source of co-funding | M4: National Delegation Support[1]
B5: InCubed (De-risking) | C5: NO | D5: 2020-04-01 | E5: 2021-04-01 | F5: Prime | G5: Large | K5: =IF( I5<> 0, J5/I5,"") ->  | M5: yes/no/under discussion
F6: Subcontractor 1[2] | G6: SME | K6: =IF( I6<> 0, J6/I6,"") ->  | M6: yes/no/under discussion
F7: Subcontractor 2 | G7: SME | M7: yes/no/under discussion
F8: Subcontractor 3 | G8: SME | M8: yes/no/under discussion
F9: Subcontractor 4 | G9: SME | M9: yes/no/under discussion
F10: Subcontractor 5 | G10: SME | M10: yes/no/under discussion
H11: Total | I11: =SUM(I5:I10) -> 0 | J11: =SUM(J5:J10) -> 0 | K11: =IF( I11<> 0, J11/I11,"") -> 
B12: InCubed (Product Development) | C12: YES | D12: 2020-04-01 | E12: 2023-04-01 | F12: Prime | G12: SME | I12: 1700 | J12: 1300 | K12: 0.7647058824 | L12: Internal R&D Funds | M12: yes/no/under discussion
F13: Subcontractor 1[2] | G13: SME | I13: 300 | J13: 150 | K13: 0.5 | L13: Bank Loan | M13: yes/no/under discussion
F14: Subcontractor 2 | G14: SME | M14: yes/no/under discussion
F15: Subcontractor 3 | G15: SME | M15: yes/no/under discussion
F16: Subcontractor 4 | G16: SME | M16: yes/no/under discussion
F17: Subcontractor 5 | G17: SME | M17: yes/no/under discussion
H18: Total | I18: =SUM(I12:I17) -> 2000 | J18: =SUM(J12:J17) -> 1450 | K18: 0.725
B19: Grand Total | I19: =I18+I11 -> 2000 | J19: =J18+J11 -> 1450
B22: [1] | C22: yes = The National Delegation has been contacted and is in favour of the proposed activity.
C23: no = The National Delegation has not yet been contacted.
C24: under discussion = The National Delegation has been contacted and discussions are ongoing.
B25: [2] | C25: In ESA terms a subcontractor is an activity partner that will take part to the activity in an active way and have a key role (usually is also co-funding the activity). Any supplier just providing external product or external service to the activity in not an ESA subcontractor and shall be listed in table Main cost elements
B29: Max 20 years span (-10 to +10 years wrt commercial launch)
B30: Development Cycle | C30: Select the entity "subject" of this financial forecast | D30: Cost kEUR | E30: Requested ESA Funding (Price) | F30: Requested ESA Funding (Price) | G30: Start | H30: Conclusion | I30: year beginning | J30: Duration | K30: year end | L30: Days in start year | M30: Duration days | N30: Days in end year
E31: kEUR | F31: % of Cost | G31: Mon-YY | H31: Mon-YY | J31: years
B32: =+B5 -> InCubed (De-risking) | C32: Prime | D32: =IF(C5="yes",VLOOKUP(C32,F5:I10,4),0) -> 0 | E32: =IF(C5="yes",VLOOKUP(C32,F5:J10,5),0) -> 0 | F32: =IF( D32<> 0, E32/D32,0) -> 0 | G32: =+IF(C5="YES",D5,"") ->  | H32: =+IF(C5="YES",E5,"") ->  | I32: =IF(OR(G32="",H32=""), 0, YEAR(G32)-YEAR($G$35)) -> 0 | J32: =IF(OR(G32="",H32=""), 0, (H32-G32)/365) -> 0 | K32: =IF(OR(G32="",H32=""), 0, YEAR(H32)-YEAR($G$35)) -> 0 | L32: =IF(OR(G32="",H32=""), 0, DATE(YEAR(G32),12,31)-G32) -> 0 | M32: =IF(OR(G32="",H32=""), 0, H32-G32) -> 0 | N32: =IF(OR(G32="",H32=""), 0, H32-DATE(YEAR(H32)-1,12,31)) -> 0
B33: =+B12 -> InCubed (Product Development) | C33: Prime | D33: =VLOOKUP(C33,F12:I17,4) -> 1700 | E33: =VLOOKUP(C33,F12:J17,5) -> 1300 | F33: =IF( D33<> 0, E33/D33,"") -> 0.7647058824 | G33: =+D12 -> 2020-04-01 | H33: =+E12 -> 2023-04-01 | I33: =YEAR(G33)-YEAR($G$35) -> -5 | J33: =+(H33-G33)/365 -> 3 | K33: =YEAR(H33)-YEAR($G$35) -> -2 | L33: =DATE(YEAR(G33),12,31)-G33 -> 274 | M33: =H33-G33 -> 1095 | N33: =H33-DATE(YEAR(H33)-1,12,31) -> 91
B34: =+B99 -> NRE Satellite cost | D34: =+C99 -> 600 | G34: =+D90 -> 2023-03-01 | H34: =+D92 -> 2023-09-01 | I34: =YEAR(G34)-YEAR($G$35) -> -2 | J34: =+(H34-G34)/365 -> 0.504109589 | K34: =YEAR(H34)-YEAR($G$35) -> -2 | L34: =DATE(YEAR(G34),12,31)-G34 -> 305 | M34: =H34-G34 -> 184 | N34: =H34-DATE(YEAR(H34)-1,12,31) -> 244
B35: Commercial stage | G35: 2025-01-01 | H35: 2035-12-31 | I35: 0 | J35: =+(H35-G35)/365 -> 11.00273973 | K35: =YEAR(H35)-YEAR($G$35) -> 10 | L35: =DATE(YEAR(G35),12,31)-G35 -> 364 | M35: =H35-G35 -> 4016 | N35: =H35-DATE(YEAR(H35)-1,12,31) -> 365
G36: =IF(H33>G35,"WARNING: Be aware that the Commercial Phase is overlapping with the InCubed+ activity, which is in a pre-commercial phase","") -> 
G37: =IF(AND(H32>G33,C12="YES",C5="YES"),"WARNING: Be aware that the Product stage is overlapping with the Technology de-risking stage","") -> 
G38: =IF(AND(C5="NO", OR(D32<>0,E32<>0)),"WARNING: Be aware that Technology de-risking stage is not included in the activity and the cost/price are not set to 0","") -> 
G39: =IF(AND(C32="NO", OR(G32<>0,H32<>0)),"WARNING: Be aware that Technology de-risking stage is not included in the activity and the start/conclusion dates should be empty","") -> 
B40: II 2.3 Revenue Streams
B42: Note: The table provides 3 different ways of generating revenues from up to 3 different Customer Segments:
B43: 1) by selling the product per unit (e.g. a batch of images unit per year)
B44: 2) by charging a one-off fee for each unit sold. It should be used in case a service is offered afterwards with a recurring service fee each year. In case of installation charges when selling a product unit, without any revenue streams afterwards, these installation charges should be included to the 'Product unit price'.
B45: 3) by a yearly service fee (e.g. in a end to end system including satellite, ground segment the EO satellite operator provides advance analytics to a customer asking for a service fee)
B46: NB: The spreadsheet is built to have or a Product Unit Sales Model or a Service Fee Model. In case you have both you should adapt the calculation done in the Revenues Sheet that make use of the table "Sales Volume (Units)" here below
B47: Figures can be adjusted; if a specific entry is not applicable, put it to 0
B48: Table 0.4 Product Pricing
B49: Customer Segments | C49: unit price (kEur) | D49: One-off charge (per unit) (kEur) | E49: Price fee per per unit sold (per year) (kEur)
B51: Customer Segment 1 | C51: 0 | D51: 1 | E51: 8
B52: Customer Segment 2 | C52: 0 | D52: 2 | E52: 15
B53: Customer Segment 3 | C53: 0 | D53: 0 | E53: 0
B54: Churn Rate | D54: 0
B56: II 2.4 Cost Structures
C59: Development Phase(s) | M59: =+G35 -> 2025-01-01 | N59: Commercial Exploitation Phase
B60: Year -> | C60: -10 | D60: -9 | E60: -8 | F60: -7 | G60: -6 | H60: -5 | I60: -4 | J60: -3 | K60: -2 | L60: -1 | M60: 0 | N60: 1 | O60: 2 | P60: 3 | Q60: 4 | R60: 5 | S60: 6 | T60: 7 | U60: 8 | V60: 9 | W60: 10
B61: =+B32 -> InCubed (De-risking) | C61: =IF(OR(C$60<$I$32,C$60>$K$32),0,IF(C$60=$I$32,(IF($I$32=$K$32,$D$32,$D$32*$L$32/$M$32)),IF(C$60=$K$32,($D$32*$N$32/$M$32),($D$32*365.25/$M$32)))) -> 0 | D61: 0 | E61: 0 | F61: 0 | G61: 0 | H61: =IF(OR(H$60<$I$32,H$60>$K$32),0,IF(H$60=$I$32,(IF($I$32=$K$32,$D$32,$D$32*$L$32/$M$32)),IF(H$60=$K$32,($D$32*$N$32/$M$32),($D$32*365.25/$M$32)))) -> 0 | I61: 0 | J61: 0 | K61: 0 | L61: =IF(OR(L$60<$I$32,L$60>$K$32),0,IF(L$60=$I$32,(IF($I$32=$K$32,$D$32,$D$32*$L$32/$M$32)),IF(L$60=$K$32,($D$32*$N$32/$M$32),($D$32*365.25/$M$32)))) -> 0 | M61: =IF(OR(M$60<$I$32,M$60>$K$32),0,IF(M$60=$I$32,(IF($I$32=$K$32,$D$32,$D$32*$L$32/$M$32)),IF(M$60=$K$32,($D$32*$N$32/$M$32),($D$32*365.25/$M$32)))) -> 0 | N61: 0 | O61: 0 | P61: 0 | Q61: 0 | R61: 0 | S61: 0 | T61: 0 | U61: 0 | V61: 0 | W61: 0
B62: =+B33 -> InCubed (Product Development) | C62: =IF(OR(C$60<$I$33,C$60>$K$33),0,IF(C$60=$I$33,(IF($I$33=$K$33,$D$33,$D$33*$L$33/$M$33)),IF(C$60=$K$33,($D$33*$N$33/$M$33),($D$33*365.25/$M$33)))) -> 0 | D62: 0 | E62: 0 | F62: 0 | G62: 0 | H62: 425.3881279 | I62: 567.0547945 | J62: 567.0547945 | K62: 141.2785388 | L62: 0 | M62: 0 | N62: 0 | O62: 0 | P62: 0 | Q62: 0 | R62: 0 | S62: 0 | T62: 0 | U62: 0 | V62: 0 | W62: 0
B63: =+B99 -> NRE Satellite cost | C63: =IF(OR(C$60<$I$34,C$60>$K$34),0,IF(C$60=$I$34,(IF($I$34=$K$34,$D$34,$D$34*$L$34/$M$34)),IF(C$60=$K$34,($D$34*$N$34/$M$34),($D$34*365.25/$M$34)))) -> 0 | D63: =IF(OR(D$60<$I$34,D$60>$K$34),0,IF(D$60=$I$34,(IF($I$34=$K$34,$D$34,$D$34*$L$34/$M$34)),IF(D$60=$K$34,($D$34*$N$34/$M$34),($D$34*365.25/$M$34)))) -> 0 | E63: 0 | F63: 0 | G63: 0 | H63: 0 | I63: 0 | J63: 0 | K63: 600 | L63: 0
B64: Year corrected -> | C64: -1 | D64: =+IF(AND(SUM(D61:D62)=0,C64=-1),-1,C64+1) -> -1 | E64: -1 | F64: -1 | G64: -1 | H64: 0 | I64: 1 | J64: 2 | K64: 3 | L64: =+IF(AND(SUM(L61:L62)=0,K64=-1),-1,K64+1) -> 4 | M64: =+IF(AND(SUM(M61:M62)=0,L64=-1),-1,L64+1) -> 5 | N64: 6 | O64: 7 | P64: 8 | Q64: 9 | R64: 10 | S64: 11 | T64: 12 | U64: 13 | V64: 14 | W64: 15
M66: =+M59 -> 2025-01-01 | N66: Commercial Exploitation Phase
M67: 0 | N67: 1 | O67: 2 | P67: 3 | Q67: 4 | R67: 5 | S67: 6 | T67: 7 | U67: 8 | V67: 9 | W67: 10
L68: Constellation batches roll-out | M68: 1 | N68: 2 | O68: 2 | P68: 3 | Q68: 0 | R68: 0 | S68: 0 | T68: 0 | U68: 0 | V68: 0 | W68: 0
M69: =IF(M$60<$M$111,0,OFFSET(M68,0,-$M$111,1,1)) -> 0 | N69: 0 | O69: 0 | P69: 1 | Q69: 2 | R69: 2 | S69: 3 | T69: 0 | U69: 0 | V69: 0 | W69: 0
M70: 0 | N70: 0 | O70: 0 | P70: 0 | Q70: 0 | R70: 0 | S70: 1 | T70: 2 | U70: 2 | V70: 3 | W70: 0
M71: 0 | N71: =IF(N$60<$M$111,0,OFFSET(N70,0,-$M$111,1,1)) -> 0 | O71: 0 | P71: 0 | Q71: 0 | R71: 0 | S71: 0 | T71: 0 | U71: 0 | V71: 1 | W71: 2
M72: 0 | N72: 0 | O72: 0 | P72: 0 | Q72: 0 | R72: 0 | S72: 0 | T72: 0 | U72: 0 | V72: 0 | W72: 0
M73: 0 | N73: 0 | O73: 0 | P73: 0 | Q73: 0 | R73: 0 | S73: 0 | T73: 0 | U73: 0 | V73: 0 | W73: 0
M74: 0 | N74: 0 | O74: 0 | P74: 0 | Q74: 0 | R74: 0 | S74: 0 | T74: 0 | U74: 0 | V74: 0 | W74: 0
M75: 0 | N75: 0 | O75: 0 | P75: 0 | Q75: 0 | R75: 0 | S75: 0 | T75: 0 | U75: 0 | V75: 0 | W75: 0
L76: Total batches launched | M76: =SUM(M68:M75) -> 1 | N76: =SUM(N68:N75) -> 2 | O76: 2 | P76: 4 | Q76: 2 | R76: 2 | S76: 4 | T76: 2 | U76: 2 | V76: 4 | W76: 2
L77: Total satellites launched | M77: =+M76*$C$101 -> 4 | N77: =+N76*$C$101 -> 8 | O77: 8 | P77: 16 | Q77: 8 | R77: 8 | S77: 16 | T77: 8 | U77: 8 | V77: 16 | W77: 8
K79: Table 0.5 Cost of Sales
K80: [Note: In case you do not have detailed cost of sales figure, provide the estimate of the cost of sale per product in the top row.
K81: In case you have detailed cost of sales, fill in the remaining rows and set zero in the top row]
J82: Costs of Sale | K82: Estimated Cost of Sales | M82: =+M66 -> 2025-01-01 | N82: Commercial Exploitation Phase
B83: MISSION | M83: 0 | N83: 1 | O83: 2 | P83: 3 | Q83: 4 | R83: 5 | S83: 6 | T83: 7 | U83: 8 | V83: 9 | W83: 10
B84: Lifetime (years) | E84: =+(H35-G35)/365 -> 11.00273973 | K84: Simplified CoS for product unit | M84: 0
B85: WACC (%) (Cost of Capital) | E85: 0.06 | K85: In Orbit Insurance cost | L85: In Orbit Insurance cost (net present) | M85: =+$C$107*M109 -> 120 | N85: 240 | O85: 240 | P85: 480 | Q85: 240 | R85: 240 | S85: 480 | T85: 240 | U85: 240 | V85: 480 | W85: 240
B86: ESA Activity (IOD) | D86: Year | K86: Launch cost | L86: Launch cost (net present) | M86: =+(M76*$C$105)*(1+$C$103) -> 2200 | N86: 4400 | O86: 4400 | P86: 8800 | Q86: 4400 | R86: 4400 | S86: 8800 | T86: 4400 | U86: 4400 | V86: 8800 | W86: 4400
B87: Start | D87: =+G33 -> 2020-04-01 | K87: Cost Element N.3 | M87: 0 | N87: 0 | O87: 0 | P87: 0 | Q87: 0 | R87: 0 | S87: 0 | T87: 0 | U87: 0 | V87: 0 | W87: 0
B88: End | D88: =+H33 -> 2023-04-01 | K88: Cost Element N.4 | M88: 0 | N88: 0 | O88: 0 | P88: 0 | Q88: 0 | R88: 0 | S88: 0 | T88: 0 | U88: 0 | V88: 0 | W88: 0
B89: MILESTONES (Constellations Deployment, NOT ESA InCubed Milestones) | C89: Investment (kEur) | D89: Year | E89: Next MS (months)
A90: Non Recurring Engineering | B90: KO | C90: 100 | D90: =EDATE(D94,-E93-E92-E91-E90) -> 2023-03-01 | E90: 3 | K90: Table 0.6 Operational Expenditures
B91: PDR | C91: 200 | D91: =EDATE(D94,-E93-E92-E91) -> 2023-06-01 | E91: 3 | J91: OPEX | K91: Estimated OPEX | M91: =+M82 -> 2025-01-01 | N91: Commercial Exploitation Phase
B92: CDR | C92: 300 | D92: =EDATE(D94,-E93-E92) -> 2023-09-01 | E92: 6 | M92: 0 | N92: 1 | O92: 2 | P92: 3 | Q92: 4 | R92: 5 | S92: 6 | T92: 7 | U92: 8 | V92: 9 | W92: 10
A93: Recurring Cost | B93: PSR (pre-shipment review) | C93: 400 | D93: =EDATE(D94,-E93) -> 2024-03-01 | E93: 1 | K93: Sales staff cost (annual salary) | M93: 100 | N93: 100 | O93: 100 | P93: 100 | Q93: 100 | R93: 100 | S93: 100 | T93: 100 | U93: 100 | V93: 100 | W93: 100
B94: Launch date | C94: 600 | D94: 2024-04-01 | E94: 6 | K94: Uplift | L94: 0.1 | M94: =+M93*$L$94 -> 10 | N94: 10 | O94: 10 | P94: 10 | Q94: 10 | R94: 10 | S94: 10 | T94: 10 | U94: 10 | V94: 10 | W94: 10
B95: IOT | C95: 500 | D95: =EDATE(D94,+E94) -> 2024-10-01 | K95: Sales staff ( FTE) | M95: 2 | N95: 10 | O95: 12 | P95: 12 | Q95: 12 | R95: 12 | S95: 12 | T95: 12 | U95: 12 | V95: 12 | W95: 12
B96: Services start date | C96: - | D96: =+G35 -> 2025-01-01 | K96: Marketing staff cost (annual salary) | M96: 80 | N96: 80 | O96: 80 | P96: 80 | Q96: 80 | R96: 80 | S96: 80 | T96: 80 | U96: 80 | V96: 80 | W96: 80
B97: CAPEX ASSUMPTIONS | K97: Uplift | L97: 0.25 | M97: =+M96*$L$97 -> 20 | N97: 20 | O97: 20 | P97: 20 | Q97: 20 | R97: 20 | S97: 20 | T97: 20 | U97: 20 | V97: 20 | W97: 20
B98: Satellites of constellation | C98: 32 | K98: Marketing staff (FTE) | M98: 2 | N98: 10 | O98: 12 | P98: 12 | Q98: 12 | R98: 12 | S98: 12 | T98: 12 | U98: 12 | V98: 12 | W98: 12
B99: NRE Satellite cost | C99: =+C90+C91+C92 -> 600 | D99: (kEur) | K99: Admin staff cost | M99: 50 | N99: 50 | O99: 50 | P99: 50 | Q99: 50 | R99: 50 | S99: 50 | T99: 50 | U99: 50 | V99: 50 | W99: 50
B100: RC Satellite recurring cost | C100: =+C95+C93+C94 -> 1500 | D100: (kEur) | K100: Uplift | L100: 0.03 | M100: =+M99*$L$100 -> 1.5 | N100: =+N99*$L$100 -> 1.5 | O100: =+O99*$L$100 -> 1.5 | P100: =+P99*$L$100 -> 1.5 | Q100: =+Q99*$L$100 -> 1.5 | R100: 0 | S100: =+S99*$L$100 -> 1.5 | T100: =+T99*$L$100 -> 1.5 | U100: =+U99*$L$100 -> 1.5 | V100: =+V99*$L$100 -> 1.5 | W100: =+W99*$L$100 -> 1.5
B101: Satellites per batches | C101: 4 | K101: Admin staff (FTE) | M101: 4 | N101: 4 | O101: 4 | P101: 4 | Q101: 4 | R101: 4 | S101: 4 | T101: 4 | U101: 4 | V101: 4 | W101: 4
B102: Satellite Lifetime | C102: 3 | K102: Ground Segment + Mission Management | M102: =+$C$108*M109 -> 1500 | N102: =+$C$108*N109 -> 3000 | O102: =+$C$108*O109 -> 3000 | P102: 6000 | Q102: 3000 | R102: 3000 | S102: 6000 | T102: 3000 | U102: 3000 | V102: 6000 | W102: 3000
B103: Launch Insurance (% of SAT CAPEX) | C103: 0.1 | K103: Other Cost N.2 | M103: 0 | N103: 0 | O103: 0 | P103: 0 | Q103: 0 | R103: 0 | S103: 0 | T103: 0 | U103: 0 | V103: 0 | W103: 0
B104: Launch needed | C104: =+C98/C101 -> 8 | K104: Other Cost N.3 | M104: 0 | N104: 0 | O104: 0 | P104: 0 | Q104: 0 | R104: 0 | S104: 0 | T104: 0 | U104: 0 | V104: 0 | W104: 0
B105: Launch Cost (Per batch) | C105: 2000
B106: EXPENSES ASSUMPTIONS | K106: Table 0.7 Capital Expenditures
B107: Insurance in orbit (% of SAT CAPEX) | C107: 0.02 | J107: CAPEX | K107: Estimated CAPEX | M107: =+M91 -> 2025-01-01 | N107: Commercial Exploitation Phase
B108: Ground Segment + Mission Management (% of Revenues) | C108: 0.25 | M108: 0 | N108: 1 | O108: 2 | P108: 3 | Q108: 4 | R108: 5 | S108: 6 | T108: 7 | U108: 8 | V108: 9 | W108: 10
B109: Corporate tax rate (%) | C109: 0.25 | K109: Satellites | M109: =+$C$100*$C$101*M76 -> 6000 | N109: 12000 | O109: 12000 | P109: 24000 | Q109: 12000 | R109: 12000 | S109: =+$C$100*$C$101*S76 -> 24000 | T109: 12000 | U109: 12000 | V109: =+$C$100*$C$101*V76 -> 24000 | W109: =+$C$100*$C$101*W76 -> 12000
K110: Investment N.3 | M110: 0 | N110: 0 | O110: 0 | P110: 0 | Q110: 0 | R110: 0 | S110: 0 | T110: 0 | V110: 0 | W110: 0
K111: Lifetime Inv. Above (years) | M111: =+C102 -> 3
K112: Ground Segment (?) | M112: 0 | N112: 0 | O112: 0 | P112: 0 | Q112: 0 | R112: 0 | S112: 0 | T112: 0 | U112: 0 | V112: 0 | W112: 0
K113: Investment N.4 | M113: 0 | N113: 0 | O113: 0 | P113: 0 | Q113: 0 | R113: 0 | S113: 0 | T113: 0 | U113: 0 | V113: 0 | W113: 0
K114: Lifetime Inv. Above (years) | M114: 7
J116: Sales Volume (Units) | K116: Number of units sold per year | M116: =+M107 -> 2025-01-01 | N116: Commercial Exploitation Phase
M117: 0 | N117: 1 | O117: 2 | P117: 3 | Q117: 4 | R117: 5 | S117: 6 | T117: 7 | U117: 8 | V117: 9 | W117: 10
K118: =+B51 -> Customer Segment 1 | M118: 0 | N118: 600 | O118: 600 | P118: 600 | Q118: 600 | R118: 600 | S118: 600 | T118: 600 | U118: 600 | V118: 600 | W118: 600
K119: =+B52 -> Customer Segment 2 | M119: 0 | N119: 200 | O119: 200 | P119: 300 | Q119: 300 | R119: 300 | S119: 300 | T119: 300 | U119: 300 | V119: 300 | W119: 300
K120: =+B53 -> Customer Segment 3

Sheet II. Revenues
B2: Result -- Annual Revenues
B4: Customer Segments | C4: Product unit price | D4: Product installation charge per unit | E4: Service fee per product per year
B6: =+'I.Input Data'!B51 -> Customer Segment 1 | C6: =+'I.Input Data'!C51 -> 0 | D6: =+'I.Input Data'!D51 -> 1 | E6: =+'I.Input Data'!E51 -> 8
B7: =+'I.Input Data'!B52 -> Customer Segment 2 | C7: =+'I.Input Data'!C52 -> 0 | D7: =+'I.Input Data'!D52 -> 2 | E7: =+'I.Input Data'!E52 -> 15
B8: =+'I.Input Data'!B53 -> Customer Segment 3 | C8: =+'I.Input Data'!C53 -> 0 | D8: =+'I.Input Data'!D53 -> 0 | E8: =+'I.Input Data'!E53 -> 0
B11: Estimated Cost of Sales | D11: =+'I.Input Data'!G35 -> 2025-01-01 | E11: Commercial Exploitation Phase
D12: 0 | E12: 1 | F12: 2 | G12: 3 | H12: 4 | I12: 5 | J12: 6 | K12: 7 | L12: 8 | M12: 9 | N12: 10
B13: Cumulative Volume Sales | C13: =+$B$6 -> Customer Segment 1 | D13: =+'I.Input Data'!M118 -> 0 | E13: =(D13*(1-'I.Input Data'!$D$54)+'I.Input Data'!N118) -> 600 | F13: =(E13*(1-'I.Input Data'!$D$54)+'I.Input Data'!O118) -> 1200 | G13: =(F13*(1-'I.Input Data'!$D$54)+'I.Input Data'!P118) -> 1800 | H13: =(G13*(1-'I.Input Data'!$D$54)+'I.Input Data'!Q118) -> 2400 | I13: =(H13*(1-'I.Input Data'!$D$54)+'I.Input Data'!R118) -> 3000 | J13: =(I13*(1-'I.Input Data'!$D$54)+'I.Input Data'!S118) -> 3600 | K13: =(J13*(1-'I.Input Data'!$D$54)+'I.Input Data'!T118) -> 4200 | L13: =(K13*(1-'I.Input Data'!$D$54)+'I.Input Data'!U118) -> 4800 | M13: =(L13*(1-'I.Input Data'!$D$54)+'I.Input Data'!V118) -> 5400 | N13: =(M13*(1-'I.Input Data'!$D$54)+'I.Input Data'!W118) -> 6000
C14: =+$B$7 -> Customer Segment 2 | D14: =+'I.Input Data'!M119 -> 0 | E14: =(D14*(1-'I.Input Data'!$D$54)+'I.Input Data'!N119) -> 200 | F14: =(E14*(1-'I.Input Data'!$D$54)+'I.Input Data'!O119) -> 400 | G14: =(F14*(1-'I.Input Data'!$D$54)+'I.Input Data'!P119) -> 700 | H14: =(G14*(1-'I.Input Data'!$D$54)+'I.Input Data'!Q119) -> 1000 | I14: =(H14*(1-'I.Input Data'!$D$54)+'I.Input Data'!R119) -> 1300 | J14: =(I14*(1-'I.Input Data'!$D$54)+'I.Input Data'!S119) -> 1600 | K14: =(J14*(1-'I.Input Data'!$D$54)+'I.Input Data'!T119) -> 1900 | L14: =(K14*(1-'I.Input Data'!$D$54)+'I.Input Data'!U119) -> 2200 | M14: =(L14*(1-'I.Input Data'!$D$54)+'I.Input Data'!V119) -> 2500 | N14: =(M14*(1-'I.Input Data'!$D$54)+'I.Input Data'!W119) -> 2800
C15: =+$B$8 -> Customer Segment 3 | D15: =+'I.Input Data'!M120 -> 0 | E15: =(D15*(1-'I.Input Data'!$D$54)+'I.Input Data'!N120) -> 0 | F15: =(E15*(1-'I.Input Data'!$D$54)+'I.Input Data'!O120) -> 0 | G15: =(F15*(1-'I.Input Data'!$D$54)+'I.Input Data'!P120) -> 0 | H15: =(G15*(1-'I.Input Data'!$D$54)+'I.Input Data'!Q120) -> 0 | I15: =(H15*(1-'I.Input Data'!$D$54)+'I.Input Data'!R120) -> 0 | J15: =(I15*(1-'I.Input Data'!$D$54)+'I.Input Data'!S120) -> 0 | K15: =(J15*(1-'I.Input Data'!$D$54)+'I.Input Data'!T120) -> 0 | L15: =(K15*(1-'I.Input Data'!$D$54)+'I.Input Data'!U120) -> 0 | M15: =(L15*(1-'I.Input Data'!$D$54)+'I.Input Data'!V120) -> 0 | N15: =(M15*(1-'I.Input Data'!$D$54)+'I.Input Data'!W120) -> 0
B16: Product Sales Revenue | C16: =+$B$6 -> Customer Segment 1 | D16: ='I.Input Data'!M118*$C$6 -> 0 | E16: ='I.Input Data'!N118*$C$6 -> 0 | F16: ='I.Input Data'!O118*$C$6 -> 0 | G16: ='I.Input Data'!P118*$C$6 -> 0 | H16: ='I.Input Data'!Q118*$C$6 -> 0 | I16: ='I.Input Data'!R118*$C$6 -> 0 | J16: ='I.Input Data'!S118*$C$6 -> 0 | K16: ='I.Input Data'!T118*$C$6 -> 0 | L16: ='I.Input Data'!U118*$C$6 -> 0 | M16: ='I.Input Data'!V118*$C$6 -> 0 | N16: ='I.Input Data'!W118*$C$6 -> 0
C17: =+$B$7 -> Customer Segment 2 | D17: ='I.Input Data'!M119*$C$7 -> 0 | E17: ='I.Input Data'!N119*$C$7 -> 0 | F17: ='I.Input Data'!O119*$C$7 -> 0 | G17: ='I.Input Data'!P119*$C$7 -> 0 | H17: ='I.Input Data'!Q119*$C$7 -> 0 | I17: ='I.Input Data'!R119*$C$7 -> 0 | J17: ='I.Input Data'!S119*$C$7 -> 0 | K17: ='I.Input Data'!T119*$C$7 -> 0 | L17: ='I.Input Data'!U119*$C$7 -> 0 | M17: ='I.Input Data'!V119*$C$7 -> 0 | N17: ='I.Input Data'!W119*$C$7 -> 0
C18: =+$B$8 -> Customer Segment 3 | D18: ='I.Input Data'!M120*$C$8 -> 0 | E18: ='I.Input Data'!N120*$C$8 -> 0 | F18: ='I.Input Data'!O120*$C$8 -> 0 | G18: ='I.Input Data'!P120*$C$8 -> 0 | H18: ='I.Input Data'!Q120*$C$8 -> 0 | I18: ='I.Input Data'!R120*$C$8 -> 0 | J18: ='I.Input Data'!S120*$C$8 -> 0 | K18: ='I.Input Data'!T120*$C$8 -> 0 | L18: ='I.Input Data'!U120*$C$8 -> 0 | M18: ='I.Input Data'!V120*$C$8 -> 0 | N18: ='I.Input Data'!W120*$C$8 -> 0
C19: Total | D19: =+SUM(D16:D18) -> 0 | E19: =+SUM(E16:E18) -> 0 | F19: =+SUM(F16:F18) -> 0 | G19: =+SUM(G16:G18) -> 0 | H19: =+SUM(H16:H18) -> 0 | I19: =+SUM(I16:I18) -> 0 | J19: 0 | K19: 0 | L19: 0 | M19: 0 | N19: =+SUM(N16:N18) -> 0
B20: Product Installation Revenue | C20: =+$B$6 -> Customer Segment 1 | D20: =+'I.Input Data'!M118*$D$6 -> 0 | E20: =+'I.Input Data'!N118*$D$6 -> 600 | F20: =+'I.Input Data'!O118*$D$6 -> 600 | G20: =+'I.Input Data'!P118*$D$6 -> 600 | H20: =+'I.Input Data'!Q118*$D$6 -> 600 | I20: =+'I.Input Data'!R118*$D$6 -> 600 | J20: =+'I.Input Data'!S118*$D$6 -> 600 | K20: =+'I.Input Data'!T118*$D$6 -> 600 | L20: =+'I.Input Data'!U118*$D$6 -> 600 | M20: =+'I.Input Data'!V118*$D$6 -> 600 | N20: =+'I.Input Data'!W118*$D$6 -> 600
C21: =+$B$7 -> Customer Segment 2 | D21: =+'I.Input Data'!M119*$D$7 -> 0 | E21: =+'I.Input Data'!N119*$D$7 -> 400 | F21: =+'I.Input Data'!O119*$D$7 -> 400 | G21: =+'I.Input Data'!P119*$D$7 -> 600 | H21: =+'I.Input Data'!Q119*$D$7 -> 600 | I21: =+'I.Input Data'!R119*$D$7 -> 600 | J21: =+'I.Input Data'!S119*$D$7 -> 600 | K21: =+'I.Input Data'!T119*$D$7 -> 600 | L21: =+'I.Input Data'!U119*$D$7 -> 600 | M21: =+'I.Input Data'!V119*$D$7 -> 600 | N21: =+'I.Input Data'!W119*$D$7 -> 600
C22: =+$B$8 -> Customer Segment 3 | D22: =+'I.Input Data'!M120*$D$8 -> 0 | E22: =+'I.Input Data'!N120*$D$8 -> 0 | F22: =+'I.Input Data'!O120*$D$8 -> 0 | G22: =+'I.Input Data'!P120*$D$8 -> 0 | H22: =+'I.Input Data'!Q120*$D$8 -> 0 | I22: =+'I.Input Data'!R120*$D$8 -> 0 | J22: =+'I.Input Data'!S120*$D$8 -> 0 | K22: =+'I.Input Data'!T120*$D$8 -> 0 | L22: =+'I.Input Data'!U120*$D$8 -> 0 | M22: =+'I.Input Data'!V120*$D$8 -> 0 | N22: =+'I.Input Data'!W120*$D$8 -> 0
C23: Total | D23: =+SUM(D20:D22) -> 0 | E23: =+SUM(E20:E22) -> 1000 | F23: 1000 | G23: 1200 | H23: 1200 | I23: 1200 | J23: 1200 | K23: 1200 | L23: 1200 | M23: 1200 | N23: 1200
B24: Product Service Fee Revenue | C24: =+$B$6 -> Customer Segment 1 | D24: =+D13*$E$6 -> 0 | E24: =+E13*$E$6 -> 4800 | F24: =+F13*$E$6 -> 9600 | G24: =+G13*$E$6 -> 14400 | H24: 19200 | I24: 24000 | J24: 28800 | K24: 33600 | L24: 38400 | M24: =+M13*$E$6 -> 43200 | N24: 48000
C25: =+$B$7 -> Customer Segment 2 | D25: =+D14*$E$7 -> 0 | E25: =+E14*$E$7 -> 3000 | F25: =+F14*$E$7 -> 6000 | G25: =+G14*$E$7 -> 10500 | H25: =+H14*$E$7 -> 15000 | I25: =+I14*$E$7 -> 19500 | J25: 24000 | K25: 28500 | L25: 33000 | M25: 37500 | N25: 42000
C26: =+$B$8 -> Customer Segment 3 | D26: =+D15*$E$8 -> 0 | E26: =+E15*$E$8 -> 0 | F26: 0 | G26: 0 | H26: 0 | I26: 0 | J26: 0 | K26: 0 | L26: 0 | M26: 0 | N26: 0
C27: Total | D27: =+SUM(D24:D26) -> 0 | E27: =+SUM(E24:E26) -> 7800 | F27: 15600 | G27: 24900 | H27: 34200 | I27: 43500 | J27: 52800 | K27: 62100 | L27: 71400 | M27: 80700 | N27: 90000
B29: II 5 Market Analysis
B30: Table 0.13 Served Obtainable Market | D30: =+D11 -> 2025-01-01 | E30: =+E11 -> Commercial Exploitation Phase
A31: Sales Volume | B31: Total Revenues | C31: =+$B$6 -> Customer Segment 1 | D31: =+D16+D20+D24 -> 0 | E31: =+E16+E20+E24 -> 5400 | F31: 10200 | G31: 15000 | H31: 19800 | I31: =+I16+I20+I24 -> 24600 | J31: 29400 | K31: 34200 | L31: 39000 | M31: 43800 | N31: 48600
C32: =+$B$7 -> Customer Segment 2 | D32: 0 | E32: 3400 | F32: 6400 | G32: 11100 | H32: 15600 | I32: =+I17+I21+I25 -> 20100 | J32: 24600 | K32: 29100 | L32: 33600 | M32: 38100 | N32: 42600
C33: =+$B$8 -> Customer Segment 3 | D33: 0 | E33: 0 | F33: 0 | G33: 0 | H33: 0 | I33: =+I18+I22+I26 -> 0 | J33: 0 | K33: 0 | L33: 0 | M33: 0 | N33: 0
C34: TOTAL | D34: 0 | E34: 8800 | F34: 16600 | G34: 26100 | H34: 35400 | I34: =+I19+I23+I27 -> 44700 | J34: 54000 | K34: 63300 | L34: 72600 | M34: 81900 | N34: =+N19+N23+N27 -> 91200

Sheet III. Costs
B2: Result -- Annual Expenses
D5: Development Phase(s) | N5: =+'I.Input Data'!G35 -> 2025-01-01 | O5: Commercial Exploitation Phase
D6: =+'I.Input Data'!C60 -> -10 | E6: =+'I.Input Data'!D60 -> -9 | F6: =+'I.Input Data'!E60 -> -8 | G6: =+'I.Input Data'!F60 -> -7 | H6: =+'I.Input Data'!G60 -> -6 | I6: =+'I.Input Data'!H60 -> -5 | J6: =+'I.Input Data'!I60 -> -4 | K6: =+'I.Input Data'!J60 -> -3 | L6: =+'I.Input Data'!K60 -> -2 | M6: =+'I.Input Data'!L60 -> -1 | N6: =+'I.Input Data'!M60 -> 0 | O6: =+'I.Input Data'!N60 -> 1 | P6: =+'I.Input Data'!O60 -> 2 | Q6: =+'I.Input Data'!P60 -> 3 | R6: =+'I.Input Data'!Q60 -> 4 | S6: =+'I.Input Data'!R60 -> 5 | T6: =+'I.Input Data'!S60 -> 6 | U6: =+'I.Input Data'!T60 -> 7 | V6: =+'I.Input Data'!U60 -> 8 | W6: =+'I.Input Data'!V60 -> 9 | X6: =+'I.Input Data'!W60 -> 10
B7: =+'I.Input Data'!B34 -> NRE Satellite cost | D7: ='I.Input Data'!C63 -> 0 | E7: ='I.Input Data'!D63 -> 0 | F7: ='I.Input Data'!E63 -> 0 | G7: ='I.Input Data'!F63 -> 0 | H7: ='I.Input Data'!G63 -> 0 | I7: ='I.Input Data'!H63 -> 0 | J7: ='I.Input Data'!I63 -> 0 | K7: ='I.Input Data'!J63 -> 0 | L7: ='I.Input Data'!K63 -> 600 | M7: ='I.Input Data'!L63 -> 0 | N7: ='I.Input Data'!M63 -> 0 | O7: ='I.Input Data'!N63 -> 0 | P7: ='I.Input Data'!O63 -> 0 | Q7: ='I.Input Data'!P63 -> 0 | R7: ='I.Input Data'!Q63 -> 0 | S7: ='I.Input Data'!R63 -> 0 | T7: ='I.Input Data'!S63 -> 0 | U7: ='I.Input Data'!T63 -> 0 | V7: ='I.Input Data'!U63 -> 0 | W7: ='I.Input Data'!V63 -> 0 | X7: ='I.Input Data'!W63 -> 0
B8: Cost of InCubed Activity | D8: =+SUM('I.Input Data'!C61:C62) -> 0 | E8: =+SUM('I.Input Data'!D61:D62) -> 0 | F8: =+SUM('I.Input Data'!E61:E62) -> 0 | G8: =+SUM('I.Input Data'!F61:F62) -> 0 | H8: =+SUM('I.Input Data'!G61:G62) -> 0 | I8: =+SUM('I.Input Data'!H61:H62) -> 425.3881279 | J8: =+SUM('I.Input Data'!I61:I62) -> 567.0547945 | K8: =+SUM('I.Input Data'!J61:J62) -> 567.0547945 | L8: =+SUM('I.Input Data'!K61:K62) -> 141.2785388 | M8: =+SUM('I.Input Data'!L61:L62) -> 0 | N8: =+SUM('I.Input Data'!M61:M62) -> 0 | O8: =+SUM('I.Input Data'!N61:N62) -> 0 | P8: =+SUM('I.Input Data'!O61:O62) -> 0 | Q8: =+SUM('I.Input Data'!P61:P62) -> 0 | R8: =+SUM('I.Input Data'!Q61:Q62) -> 0 | S8: =+SUM('I.Input Data'!R61:R62) -> 0 | T8: =+SUM('I.Input Data'!S61:S62) -> 0 | U8: =+SUM('I.Input Data'!T61:T62) -> 0 | V8: =+SUM('I.Input Data'!U61:U62) -> 0 | W8: =+SUM('I.Input Data'!V61:V62) -> 0 | X8: =+SUM('I.Input Data'!W61:W62) -> 0
B9: ESA Financial support | D9: ='I.Input Data'!C61*'I.Input Data'!$F$32+'I.Input Data'!C62*'I.Input Data'!$F$33 -> 0 | E9: ='I.Input Data'!D61*'I.Input Data'!$F$32+'I.Input Data'!D62*'I.Input Data'!$F$33 -> 0 | F9: ='I.Input Data'!E61*'I.Input Data'!$F$32+'I.Input Data'!E62*'I.Input Data'!$F$33 -> 0 | G9: ='I.Input Data'!F61*'I.Input Data'!$F$32+'I.Input Data'!F62*'I.Input Data'!$F$33 -> 0 | H9: ='I.Input Data'!G61*'I.Input Data'!$F$32+'I.Input Data'!G62*'I.Input Data'!$F$33 -> 0 | I9: ='I.Input Data'!H61*'I.Input Data'!$F$32+'I.Input Data'!H62*'I.Input Data'!$F$33 -> 325.2968037 | J9: ='I.Input Data'!I61*'I.Input Data'!$F$32+'I.Input Data'!I62*'I.Input Data'!$F$33 -> 433.630137 | K9: ='I.Input Data'!J61*'I.Input Data'!$F$32+'I.Input Data'!J62*'I.Input Data'!$F$33 -> 433.630137 | L9: ='I.Input Data'!K61*'I.Input Data'!$F$32+'I.Input Data'!K62*'I.Input Data'!$F$33 -> 108.0365297 | M9: ='I.Input Data'!L61*'I.Input Data'!$F$32+'I.Input Data'!L62*'I.Input Data'!$F$33 -> 0 | N9: ='I.Input Data'!M61*'I.Input Data'!$F$32+'I.Input Data'!M62*'I.Input Data'!$F$33 -> 0 | O9: ='I.Input Data'!N61*'I.Input Data'!$F$32+'I.Input Data'!N62*'I.Input Data'!$F$33 -> 0 | P9: ='I.Input Data'!O61*'I.Input Data'!$F$32+'I.Input Data'!O62*'I.Input Data'!$F$33 -> 0 | Q9: ='I.Input Data'!P61*'I.Input Data'!$F$32+'I.Input Data'!P62*'I.Input Data'!$F$33 -> 0 | R9: ='I.Input Data'!Q61*'I.Input Data'!$F$32+'I.Input Data'!Q62*'I.Input Data'!$F$33 -> 0 | S9: ='I.Input Data'!R61*'I.Input Data'!$F$32+'I.Input Data'!R62*'I.Input Data'!$F$33 -> 0 | T9: ='I.Input Data'!S61*'I.Input Data'!$F$32+'I.Input Data'!S62*'I.Input Data'!$F$33 -> 0 | U9: ='I.Input Data'!T61*'I.Input Data'!$F$32+'I.Input Data'!T62*'I.Input Data'!$F$33 -> 0 | V9: ='I.Input Data'!U61*'I.Input Data'!$F$32+'I.Input Data'!U62*'I.Input Data'!$F$33 -> 0 | W9: ='I.Input Data'!V61*'I.Input Data'!$F$32+'I.Input Data'!V62*'I.Input Data'!$F$33 -> 0 | X9: ='I.Input Data'!W61*'I.Input Data'!$F$32+'I.Input Data'!W62*'I.Input Data'!$F$33 -> 0
B10: Simplified Cost of Sales | N10: =+'I.Input Data'!$M$84*('I.Input Data'!M118+'I.Input Data'!M119+'I.Input Data'!M120) -> 0 | O10: =+'I.Input Data'!$M$84*('I.Input Data'!N118+'I.Input Data'!N119+'I.Input Data'!N120) -> 0 | P10: =+'I.Input Data'!$M$84*('I.Input Data'!O118+'I.Input Data'!O119+'I.Input Data'!O120) -> 0 | Q10: =+'I.Input Data'!$M$84*('I.Input Data'!P118+'I.Input Data'!P119+'I.Input Data'!P120) -> 0 | R10: =+'I.Input Data'!$M$84*('I.Input Data'!Q118+'I.Input Data'!Q119+'I.Input Data'!Q120) -> 0 | S10: =+'I.Input Data'!$M$84*('I.Input Data'!R118+'I.Input Data'!R119+'I.Input Data'!R120) -> 0 | T10: =+'I.Input Data'!$M$84*('I.Input Data'!S118+'I.Input Data'!S119+'I.Input Data'!S120) -> 0 | U10: =+'I.Input Data'!$M$84*('I.Input Data'!T118+'I.Input Data'!T119+'I.Input Data'!T120) -> 0 | V10: =+'I.Input Data'!$M$84*('I.Input Data'!U118+'I.Input Data'!U119+'I.Input Data'!U120) -> 0 | W10: =+'I.Input Data'!$M$84*('I.Input Data'!V118+'I.Input Data'!V119+'I.Input Data'!V120) -> 0 | X10: =+'I.Input Data'!$M$84*('I.Input Data'!W118+'I.Input Data'!W119+'I.Input Data'!W120) -> 0
B11: Cost of Sales | C11: =+'I.Input Data'!K85 -> In Orbit Insurance cost | N11: =+'I.Input Data'!M85 -> 120 | O11: =+'I.Input Data'!N85 -> 240 | P11: =+'I.Input Data'!O85 -> 240 | Q11: =+'I.Input Data'!P85 -> 480 | R11: =+'I.Input Data'!Q85 -> 240 | S11: =+'I.Input Data'!R85 -> 240 | T11: =+'I.Input Data'!S85 -> 480 | U11: =+'I.Input Data'!T85 -> 240 | V11: =+'I.Input Data'!U85 -> 240 | W11: =+'I.Input Data'!V85 -> 480 | X11: =+'I.Input Data'!W85 -> 240
C12: =+'I.Input Data'!K86 -> Launch cost | N12: =+'I.Input Data'!M86 -> 2200 | O12: =+'I.Input Data'!N86 -> 4400 | P12: =+'I.Input Data'!O86 -> 4400 | Q12: =+'I.Input Data'!P86 -> 8800 | R12: =+'I.Input Data'!Q86 -> 4400 | S12: =+'I.Input Data'!R86 -> 4400 | T12: =+'I.Input Data'!S86 -> 8800 | U12: =+'I.Input Data'!T86 -> 4400 | V12: =+'I.Input Data'!U86 -> 4400 | W12: =+'I.Input Data'!V86 -> 8800 | X12: =+'I.Input Data'!W86 -> 4400
C13: =+'I.Input Data'!K87 -> Cost Element N.3 | N13: =+'I.Input Data'!M87 -> 0 | O13: =+'I.Input Data'!N87 -> 0 | P13: =+'I.Input Data'!O87 -> 0 | Q13: =+'I.Input Data'!P87 -> 0 | R13: =+'I.Input Data'!Q87 -> 0 | S13: =+'I.Input Data'!R87 -> 0 | T13: =+'I.Input Data'!S87 -> 0 | U13: =+'I.Input Data'!T87 -> 0 | V13: =+'I.Input Data'!U87 -> 0 | W13: =+'I.Input Data'!V87 -> 0 | X13: =+'I.Input Data'!W87 -> 0
C14: =+'I.Input Data'!K88 -> Cost Element N.4 | N14: =+'I.Input Data'!M88 -> 0 | O14: =+'I.Input Data'!N88 -> 0 | P14: =+'I.Input Data'!O88 -> 0 | Q14: =+'I.Input Data'!P88 -> 0 | R14: =+'I.Input Data'!Q88 -> 0 | S14: =+'I.Input Data'!R88 -> 0 | T14: =+'I.Input Data'!S88 -> 0 | U14: =+'I.Input Data'!T88 -> 0 | V14: =+'I.Input Data'!U88 -> 0 | W14: =+'I.Input Data'!V88 -> 0 | X14: =+'I.Input Data'!W88 -> 0
B15: OPEX | C15: Sales | N15: =('I.Input Data'!M93+'I.Input Data'!M94)*'I.Input Data'!M95 -> 220 | O15: =('I.Input Data'!N93+'I.Input Data'!N94)*'I.Input Data'!N95 -> 1100 | P15: =('I.Input Data'!O93+'I.Input Data'!O94)*'I.Input Data'!O95 -> 1320 | Q15: =('I.Input Data'!P93+'I.Input Data'!P94)*'I.Input Data'!P95 -> 1320 | R15: =('I.Input Data'!Q93+'I.Input Data'!Q94)*'I.Input Data'!Q95 -> 1320 | S15: =('I.Input Data'!R93+'I.Input Data'!R94)*'I.Input Data'!R95 -> 1320 | T15: =('I.Input Data'!S93+'I.Input Data'!S94)*'I.Input Data'!S95 -> 1320 | U15: =('I.Input Data'!T93+'I.Input Data'!T94)*'I.Input Data'!T95 -> 1320 | V15: =('I.Input Data'!U93+'I.Input Data'!U94)*'I.Input Data'!U95 -> 1320 | W15: =('I.Input Data'!V93+'I.Input Data'!V94)*'I.Input Data'!V95 -> 1320 | X15: =('I.Input Data'!W93+'I.Input Data'!W94)*'I.Input Data'!W95 -> 1320
C16: Marketing | N16: =+('I.Input Data'!M96+'I.Input Data'!M97)*'I.Input Data'!M98 -> 200 | O16: =+('I.Input Data'!N96+'I.Input Data'!N97)*'I.Input Data'!N98 -> 1000 | P16: =+('I.Input Data'!O96+'I.Input Data'!O97)*'I.Input Data'!O98 -> 1200 | Q16: =+('I.Input Data'!P96+'I.Input Data'!P97)*'I.Input Data'!P98 -> 1200 | R16: =+('I.Input Data'!Q96+'I.Input Data'!Q97)*'I.Input Data'!Q98 -> 1200 | S16: =+('I.Input Data'!R96+'I.Input Data'!R97)*'I.Input Data'!R98 -> 1200 | T16: =+('I.Input Data'!S96+'I.Input Data'!S97)*'I.Input Data'!S98 -> 1200 | U16: =+('I.Input Data'!T96+'I.Input Data'!T97)*'I.Input Data'!T98 -> 1200 | V16: =+('I.Input Data'!U96+'I.Input Data'!U97)*'I.Input Data'!U98 -> 1200 | W16: =+('I.Input Data'!V96+'I.Input Data'!V97)*'I.Input Data'!V98 -> 1200 | X16: =+('I.Input Data'!W96+'I.Input Data'!W97)*'I.Input Data'!W98 -> 1200
C17: Admin | N17: =+('I.Input Data'!M99+'I.Input Data'!M100)*'I.Input Data'!M101 -> 206 | O17: =+('I.Input Data'!N99+'I.Input Data'!N100)*'I.Input Data'!N101 -> 206 | P17: =+('I.Input Data'!O99+'I.Input Data'!O100)*'I.Input Data'!O101 -> 206 | Q17: =+('I.Input Data'!P99+'I.Input Data'!P100)*'I.Input Data'!P101 -> 206 | R17: =+('I.Input Data'!Q99+'I.Input Data'!Q100)*'I.Input Data'!Q101 -> 206 | S17: =+('I.Input Data'!R99+'I.Input Data'!R100)*'I.Input Data'!R101 -> 200 | T17: =+('I.Input Data'!S99+'I.Input Data'!S100)*'I.Input Data'!S101 -> 206 | U17: =+('I.Input Data'!T99+'I.Input Data'!T100)*'I.Input Data'!T101 -> 206 | V17: =+('I.Input Data'!U99+'I.Input Data'!U100)*'I.Input Data'!U101 -> 206 | W17: =+('I.Input Data'!V99+'I.Input Data'!V100)*'I.Input Data'!V101 -> 206 | X17: =+('I.Input Data'!W99+'I.Input Data'!W100)*'I.Input Data'!W101 -> 206
C18: =+'I.Input Data'!K102 -> Ground Segment + Mission Management | N18: =+'I.Input Data'!M102 -> 1500 | O18: =+'I.Input Data'!N102 -> 3000 | P18: =+'I.Input Data'!O102 -> 3000 | Q18: =+'I.Input Data'!P102 -> 6000 | R18: =+'I.Input Data'!Q102 -> 3000 | S18: =+'I.Input Data'!R102 -> 3000 | T18: =+'I.Input Data'!S102 -> 6000 | U18: =+'I.Input Data'!T102 -> 3000 | V18: =+'I.Input Data'!U102 -> 3000 | W18: =+'I.Input Data'!V102 -> 6000 | X18: =+'I.Input Data'!W102 -> 3000
C19: =+'I.Input Data'!K103 -> Other Cost N.2 | N19: =+'I.Input Data'!M103 -> 0 | O19: =+'I.Input Data'!N103 -> 0 | P19: =+'I.Input Data'!O103 -> 0 | Q19: =+'I.Input Data'!P103 -> 0 | R19: =+'I.Input Data'!Q103 -> 0 | S19: =+'I.Input Data'!R103 -> 0 | T19: =+'I.Input Data'!S103 -> 0 | U19: =+'I.Input Data'!T103 -> 0 | V19: =+'I.Input Data'!U103 -> 0 | W19: =+'I.Input Data'!V103 -> 0 | X19: =+'I.Input Data'!W103 -> 0
C20: =+'I.Input Data'!K104 -> Other Cost N.3 | N20: =+'I.Input Data'!M104 -> 0 | O20: =+'I.Input Data'!N104 -> 0 | P20: =+'I.Input Data'!O104 -> 0 | Q20: =+'I.Input Data'!P104 -> 0 | R20: =+'I.Input Data'!Q104 -> 0 | S20: =+'I.Input Data'!R104 -> 0 | T20: =+'I.Input Data'!S104 -> 0 | U20: =+'I.Input Data'!T104 -> 0 | V20: =+'I.Input Data'!U104 -> 0 | W20: =+'I.Input Data'!V104 -> 0 | X20: =+'I.Input Data'!W104 -> 0
C21: =CONCATENATE(+'I.Input Data'!K109," dep.",+'I.Input Data'!$M$111,"y") -> Satellites dep.3y | N21: =+'I.Input Data'!M109 -> 6000 | O21: =+'I.Input Data'!N109 -> 12000 | P21: =+'I.Input Data'!O109 -> 12000 | Q21: =+'I.Input Data'!P109 -> 24000 | R21: =+'I.Input Data'!Q109 -> 12000 | S21: =+'I.Input Data'!R109 -> 12000 | T21: =+'I.Input Data'!S109 -> 24000 | U21: =+'I.Input Data'!T109 -> 12000 | V21: =+'I.Input Data'!U109 -> 12000 | W21: =+'I.Input Data'!V109 -> 24000 | X21: =+'I.Input Data'!W109 -> 12000
C22: =CONCATENATE(+'I.Input Data'!K110," dep.",+'I.Input Data'!$M$111,"y") -> Investment N.3 dep.3y | N22: =+'I.Input Data'!M110 -> 0 | O22: =+'I.Input Data'!N110 -> 0 | P22: =+'I.Input Data'!O110 -> 0 | Q22: =+'I.Input Data'!P110 -> 0 | R22: =+'I.Input Data'!Q110 -> 0 | S22: =+'I.Input Data'!R110 -> 0 | T22: =+'I.Input Data'!S110 -> 0 | U22: =+'I.Input Data'!T110 -> 0 | V22: =+'I.Input Data'!U110 -> 0 | W22: =+'I.Input Data'!V110 -> 0 | X22: =+'I.Input Data'!W110 -> 0
C23: =CONCATENATE("Total investment ",+'I.Input Data'!$M$111,"y") -> Total investment 3y | N23: =+SUM(N21:N22) -> 6000 | O23: =+SUM(O21:O22) -> 12000 | P23: =+SUM(P21:P22) -> 12000 | Q23: =+SUM(Q21:Q22) -> 24000 | R23: =+SUM(R21:R22) -> 12000 | S23: =+SUM(S21:S22) -> 12000 | T23: 24000 | U23: 12000 | V23: 12000 | W23: 24000 | X23: 12000
C24: =CONCATENATE(+'I.Input Data'!K112," dep.",+'I.Input Data'!$M$114,"y") -> Ground Segment (?) dep.7y | N24: =+'I.Input Data'!M112 -> 0 | O24: =+'I.Input Data'!N112 -> 0 | P24: =+'I.Input Data'!O112 -> 0 | Q24: =+'I.Input Data'!P112 -> 0 | R24: =+'I.Input Data'!Q112 -> 0 | S24: =+'I.Input Data'!R112 -> 0 | T24: =+'I.Input Data'!S112 -> 0 | U24: =+'I.Input Data'!T112 -> 0 | V24: =+'I.Input Data'!U112 -> 0 | W24: =+'I.Input Data'!V112 -> 0 | X24: =+'I.Input Data'!W112 -> 0
C25: =CONCATENATE(+'I.Input Data'!K113," dep.",+'I.Input Data'!$M$114,"y") -> Investment N.4 dep.7y | N25: =+'I.Input Data'!M113 -> 0 | O25: =+'I.Input Data'!N113 -> 0 | P25: =+'I.Input Data'!O113 -> 0 | Q25: =+'I.Input Data'!P113 -> 0 | R25: =+'I.Input Data'!Q113 -> 0 | S25: =+'I.Input Data'!R113 -> 0 | T25: =+'I.Input Data'!S113 -> 0 | U25: =+'I.Input Data'!T113 -> 0 | V25: =+'I.Input Data'!U113 -> 0 | W25: =+'I.Input Data'!V113 -> 0 | X25: =+'I.Input Data'!W113 -> 0
C26: =CONCATENATE("Total investment ",+'I.Input Data'!$M$114,"y") -> Total investment 7y | N26: =+SUM(N24:N25) -> 0 | O26: =+SUM(O24:O25) -> 0 | P26: =+SUM(P24:P25) -> 0 | Q26: =+SUM(Q24:Q25) -> 0 | R26: =+SUM(R24:R25) -> 0 | S26: =+SUM(S24:S25) -> 0 | T26: 0 | U26: 0 | V26: 0 | W26: 0 | X26: 0

Sheet IV. Profit&Loss + Cash Flow
A1: IV. | B1: Stage IV - Profit & Loss and Cash Flow Statement Calculation
B3: In this worksheet the Profit and Loss (P&L) statement and a simplified version of the cash flow statement are presented. No input from your side is required.
B4: The Discounted Cash Flow (DCF) method is used to evaluate the project.
B6: Cost of Capital (WACC) | C6: =+'I.Input Data'!E85 -> 0.06
A7: PROFIT & LOSS | D7: Development Phase(s) | N7: =+'I.Input Data'!G35 -> 2025-01-01 | O7: Commercial Exploitation Phase | Z7: WITH ESA
C8: Year -> | D8: =+'I.Input Data'!C64 -> -1 | E8: =+'I.Input Data'!D64 -> -1 | F8: =+'I.Input Data'!E64 -> -1 | G8: =+'I.Input Data'!F64 -> -1 | H8: =+'I.Input Data'!G64 -> -1 | I8: =+'I.Input Data'!H64 -> 0 | J8: =+'I.Input Data'!I64 -> 1 | K8: =+'I.Input Data'!J64 -> 2 | L8: =+'I.Input Data'!K64 -> 3 | M8: =+'I.Input Data'!L64 -> 4 | N8: =+'I.Input Data'!M64 -> 5 | O8: =+'I.Input Data'!N64 -> 6 | P8: =+'I.Input Data'!O64 -> 7 | Q8: =+'I.Input Data'!P64 -> 8 | R8: =+'I.Input Data'!Q64 -> 9 | S8: =+'I.Input Data'!R64 -> 10 | T8: =+'I.Input Data'!S64 -> 11 | U8: =+'I.Input Data'!T64 -> 12 | V8: =+'I.Input Data'!U64 -> 13 | W8: =+'I.Input Data'!V64 -> 14 | X8: =+'I.Input Data'!W64 -> 15 | Y8: Pay Back | Z8: =CONCATENATE("year ",COUNTIF(INDIRECT(SUPPORT!$D$33),"<0")) -> year 12
B9: Revenues (kEur) | C9: =+'II. Revenues'!B16 -> Product Sales Revenue | N9: =+'II. Revenues'!D19 -> 0 | O9: =+'II. Revenues'!E19 -> 0 | P9: =+'II. Revenues'!F19 -> 0 | Q9: =+'II. Revenues'!G19 -> 0 | R9: =+'II. Revenues'!H19 -> 0 | S9: =+'II. Revenues'!I19 -> 0 | T9: =+'II. Revenues'!J19 -> 0 | U9: =+'II. Revenues'!K19 -> 0 | V9: =+'II. Revenues'!L19 -> 0 | W9: =+'II. Revenues'!M19 -> 0 | X9: =+'II. Revenues'!N19 -> 0 | Y9: IRR | Z9: =IF(SUM(INDIRECT(SUPPORT!$D$34))=0,0,IRR(INDIRECT(SUPPORT!$D$34))) -> 0.2987195096
C10: =+'II. Revenues'!B20 -> Product Installation Revenue | N10: =+'II. Revenues'!D23 -> 0 | O10: =+'II. Revenues'!E23 -> 1000 | P10: =+'II. Revenues'!F23 -> 1000 | Q10: =+'II. Revenues'!G23 -> 1200 | R10: =+'II. Revenues'!H23 -> 1200 | S10: =+'II. Revenues'!I23 -> 1200 | T10: =+'II. Revenues'!J23 -> 1200 | U10: =+'II. Revenues'!K23 -> 1200 | V10: =+'II. Revenues'!L23 -> 1200 | W10: =+'II. Revenues'!M23 -> 1200 | X10: =+'II. Revenues'!N23 -> 1200 | Y10: NPV | Z10: =NPV($C$6,INDIRECT(SUPPORT!$D$35))+INDIRECT(SUPPORT!$D$36) -> 82509.19331
C11: =+'II. Revenues'!B24 -> Product Service Fee Revenue | N11: =+'II. Revenues'!D27 -> 0 | O11: =+'II. Revenues'!E27 -> 7800 | P11: =+'II. Revenues'!F27 -> 15600 | Q11: =+'II. Revenues'!G27 -> 24900 | R11: =+'II. Revenues'!H27 -> 34200 | S11: =+'II. Revenues'!I27 -> 43500 | T11: =+'II. Revenues'!J27 -> 52800 | U11: =+'II. Revenues'!K27 -> 62100 | V11: =+'II. Revenues'!L27 -> 71400 | W11: =+'II. Revenues'!M27 -> 80700 | X11: =+'II. Revenues'!N27 -> 90000
C12: =+'II. Revenues'!B31 -> Total Revenues | N12: =+SUM(N9:N11) -> 0 | O12: =+SUM(O9:O11) -> 8800 | P12: 16600 | Q12: 26100 | R12: 35400 | S12: 44700 | T12: 54000 | U12: 63300 | V12: 72600 | W12: 81900 | X12: 91200
B13: Expenses (kEur) | C13: =+'III. Costs'!B11 -> Cost of Sales | N13: =+SUM('III. Costs'!N10:N14) -> 2320 | O13: =+SUM('III. Costs'!O10:O14) -> 4640 | P13: =+SUM('III. Costs'!P10:P14) -> 4640 | Q13: =+SUM('III. Costs'!Q10:Q14) -> 9280 | R13: =+SUM('III. Costs'!R10:R14) -> 4640 | S13: =+SUM('III. Costs'!S10:S14) -> 4640 | T13: =+SUM('III. Costs'!T10:T14) -> 9280 | U13: =+SUM('III. Costs'!U10:U14) -> 4640 | V13: =+SUM('III. Costs'!V10:V14) -> 4640 | W13: =+SUM('III. Costs'!W10:W14) -> 9280 | X13: =+SUM('III. Costs'!X10:X14) -> 4640
C14: =+'III. Costs'!C15 -> Sales | N14: =+'III. Costs'!N15 -> 220 | O14: =+'III. Costs'!O15 -> 1100 | P14: =+'III. Costs'!P15 -> 1320 | Q14: =+'III. Costs'!Q15 -> 1320 | R14: =+'III. Costs'!R15 -> 1320 | S14: =+'III. Costs'!S15 -> 1320 | T14: =+'III. Costs'!T15 -> 1320 | U14: =+'III. Costs'!U15 -> 1320 | V14: =+'III. Costs'!V15 -> 1320 | W14: =+'III. Costs'!W15 -> 1320 | X14: =+'III. Costs'!X15 -> 1320 | Z14: WITHOUT ESA
C15: =+'III. Costs'!C16 -> Marketing | N15: =+'III. Costs'!N16 -> 200 | O15: =+'III. Costs'!O16 -> 1000 | P15: =+'III. Costs'!P16 -> 1200 | Q15: =+'III. Costs'!Q16 -> 1200 | R15: =+'III. Costs'!R16 -> 1200 | S15: =+'III. Costs'!S16 -> 1200 | T15: =+'III. Costs'!T16 -> 1200 | U15: =+'III. Costs'!U16 -> 1200 | V15: =+'III. Costs'!V16 -> 1200 | W15: =+'III. Costs'!W16 -> 1200 | X15: =+'III. Costs'!X16 -> 1200 | Y15: Pay Back | Z15: =CONCATENATE("year ",COUNTIF(INDIRECT(SUPPORT!$D$28),"<0")) -> year 12
C16: =+'III. Costs'!C17 -> Admin | N16: =+'III. Costs'!N17 -> 206 | O16: =+'III. Costs'!O17 -> 206 | P16: =+'III. Costs'!P17 -> 206 | Q16: =+'III. Costs'!Q17 -> 206 | R16: =+'III. Costs'!R17 -> 206 | S16: =+'III. Costs'!S17 -> 200 | T16: =+'III. Costs'!T17 -> 206 | U16: =+'III. Costs'!U17 -> 206 | V16: =+'III. Costs'!V17 -> 206 | W16: =+'III. Costs'!W17 -> 206 | X16: =+'III. Costs'!X17 -> 206 | Y16: IRR | Z16: =IF(SUM(INDIRECT(SUPPORT!$D$29))=0,0,IRR(INDIRECT(SUPPORT!$D$29))) -> 0.2790447585
C17: Other Opex | N17: =+'III. Costs'!N18+'III. Costs'!N19+'III. Costs'!N20 -> 1500 | O17: =+'III. Costs'!O18+'III. Costs'!O19+'III. Costs'!O20 -> 3000 | P17: =+'III. Costs'!P18+'III. Costs'!P19+'III. Costs'!P20 -> 3000 | Q17: =+'III. Costs'!Q18+'III. Costs'!Q19+'III. Costs'!Q20 -> 6000 | R17: =+'III. Costs'!R18+'III. Costs'!R19+'III. Costs'!R20 -> 3000 | S17: =+'III. Costs'!S18+'III. Costs'!S19+'III. Costs'!S20 -> 3000 | T17: =+'III. Costs'!T18+'III. Costs'!T19+'III. Costs'!T20 -> 6000 | U17: =+'III. Costs'!U18+'III. Costs'!U19+'III. Costs'!U20 -> 3000 | V17: =+'III. Costs'!V18+'III. Costs'!V19+'III. Costs'!V20 -> 3000 | W17: =+'III. Costs'!W18+'III. Costs'!W19+'III. Costs'!W20 -> 6000 | X17: =+'III. Costs'!X18+'III. Costs'!X19+'III. Costs'!X20 -> 3000 | Y17: NPV | Z17: =NPV($C$6,INDIRECT(SUPPORT!$D$30))+INDIRECT(SUPPORT!$D$31) -> 81298.17264
B18: Expenses R&D (kEur) | C18: Cost of Development Phases | D18: =+'III. Costs'!D8+'III. Costs'!D7 -> 0 | E18: =+'III. Costs'!E8+'III. Costs'!E7 -> 0 | F18: =+'III. Costs'!F8+'III. Costs'!F7 -> 0 | G18: =+'III. Costs'!G8+'III. Costs'!G7 -> 0 | H18: =+'III. Costs'!H8+'III. Costs'!H7 -> 0 | I18: =+'III. Costs'!I8+'III. Costs'!I7 -> 425.3881279 | J18: =+'III. Costs'!J8+'III. Costs'!J7 -> 567.0547945 | K18: =+'III. Costs'!K8+'III. Costs'!K7 -> 567.0547945 | L18: =+'III. Costs'!L8+'III. Costs'!L7 -> 741.2785388 | M18: =+'III. Costs'!M8+'III. Costs'!M7 -> 0 | N18: =+'III. Costs'!N8+'III. Costs'!N7 -> 0 | O18: =+'III. Costs'!O8+'III. Costs'!O7 -> 0 | P18: =+'III. Costs'!P8+'III. Costs'!P7 -> 0 | Q18: =+'III. Costs'!Q8+'III. Costs'!Q7 -> 0 | R18: =+'III. Costs'!R8+'III. Costs'!R7 -> 0 | S18: =+'III. Costs'!S8+'III. Costs'!S7 -> 0 | T18: =+'III. Costs'!T8+'III. Costs'!T7 -> 0 | U18: =+'III. Costs'!U8+'III. Costs'!U7 -> 0 | V18: =+'III. Costs'!V8+'III. Costs'!V7 -> 0 | W18: =+'III. Costs'!W8+'III. Costs'!W7 -> 0 | X18: =+'III. Costs'!X8+'III. Costs'!X7 -> 0
C19: ESA Financial support | D19: =-'III. Costs'!D9 -> 0 | E19: =-'III. Costs'!E9 -> 0 | F19: =-'III. Costs'!F9 -> 0 | G19: =-'III. Costs'!G9 -> 0 | H19: =-'III. Costs'!H9 -> 0 | I19: =-'III. Costs'!I9 -> -325.2968037 | J19: =-'III. Costs'!J9 -> -433.630137 | K19: =-'III. Costs'!K9 -> -433.630137 | L19: =-'III. Costs'!L9 -> -108.0365297 | M19: =-'III. Costs'!M9 -> 0 | N19: =-+'III. Costs'!N9 -> 0 | O19: =-+'III. Costs'!O9 -> 0 | P19: =-+'III. Costs'!P9 -> 0 | Q19: =-+'III. Costs'!Q9 -> 0 | R19: =-+'III. Costs'!R9 -> 0 | S19: =-+'III. Costs'!S9 -> 0 | T19: =-+'III. Costs'!T9 -> 0 | U19: =-+'III. Costs'!U9 -> 0 | V19: =-+'III. Costs'!V9 -> 0 | W19: =-+'III. Costs'!W9 -> 0 | X19: =-+'III. Costs'!X9 -> 0
C20: R&D (net) | D20: =+D18+D19 -> 0 | E20: =+E18+E19 -> 0 | F20: =+F18+F19 -> 0 | G20: 0 | H20: 0 | I20: 100.0913242 | J20: =+J18+J19 -> 133.4246575 | K20: =+K18+K19 -> 133.4246575 | L20: =+L18+L19 -> 633.2420091 | M20: =+M18+M19 -> 0 | N20: =+N18+N19 -> 0 | O20: =+O18+O19 -> 0 | P20: 0 | Q20: 0 | R20: 0 | S20: =+S18+S19 -> 0 | T20: 0 | U20: 0 | V20: 0 | W20: 0 | X20: 0
B21: Total Expenses (kEur) | C21: Total Expenses (w/o ESA) | D21: =+SUM(D13:D17)+D18 -> 0 | E21: 0 | F21: 0 | G21: 0 | H21: 0 | I21: 425.3881279 | J21: 567.0547945 | K21: 567.0547945 | L21: 741.2785388 | M21: 0 | N21: 4446 | O21: 9946 | P21: 10366 | Q21: 18006 | R21: 10366 | S21: 10360 | T21: 18006 | U21: 10366 | V21: 10366 | W21: 18006 | X21: 10366
C22: Total Expenses (with ESA) | D22: =+SUM(D13:D17)+D20 -> 0 | E22: 0 | F22: 0 | G22: 0 | H22: 0 | I22: 100.0913242 | J22: 133.4246575 | K22: 133.4246575 | L22: 633.2420091 | M22: 0 | N22: 4446 | O22: 9946 | P22: 10366 | Q22: 18006 | R22: 10366 | S22: 10360 | T22: 18006 | U22: 10366 | V22: 10366 | W22: 18006 | X22: 10366
B23: EBITDA (with ESA support) | C23: EBITDA | D23: =+D12-D22 -> 0 | E23: 0 | F23: 0 | G23: 0 | H23: 0 | I23: -100.0913242 | J23: -133.4246575 | K23: -133.4246575 | L23: -633.2420091 | M23: 0 | N23: -4446 | O23: -1146 | P23: 6234 | Q23: 8094 | R23: 25034 | S23: 34340 | T23: 35994 | U23: 52934 | V23: 62234 | W23: 63894 | X23: 80834
C24: EBITDA Margin | D24: =IF(D12=0,0,D23/D12) -> 0 | E24: 0 | F24: 0 | G24: 0 | H24: 0 | I24: 0 | J24: 0 | K24: 0 | L24: 0 | M24: 0 | N24: 0 | O24: -0.1302272727 | P24: 0.3755421687 | Q24: 0.3101149425 | R24: 0.7071751412 | S24: 0.7682326622 | T24: 0.6665555556 | U24: 0.8362401264 | V24: 0.8572176309 | W24: 0.7801465201 | X24: 0.8863377193
B25: CAPEX (kEur) | C25: Depreciation | N25: =+Depreciation!F61 -> 2000 | O25: =+Depreciation!G61 -> 6000 | P25: =+Depreciation!H61 -> 10000 | Q25: =+Depreciation!I61 -> 16000 | R25: =+Depreciation!J61 -> 16000 | S25: =+Depreciation!K61 -> 16000 | T25: =+Depreciation!L61 -> 16000 | U25: =+Depreciation!M61 -> 16000 | V25: =+Depreciation!N61 -> 16000 | W25: =+Depreciation!O61 -> 16000 | X25: =+Depreciation!P61 -> 16000
B26: Operating Profit (EBIT) (with ESA support) | C26: EBIT | D26: =+D23-D25 -> 0 | E26: =+E23-E25 -> 0 | F26: 0 | G26: 0 | H26: 0 | I26: -100.0913242 | J26: -133.4246575 | K26: -133.4246575 | L26: -633.2420091 | M26: 0 | N26: -6446 | O26: =+O23-O25 -> -7146 | P26: -3766 | Q26: -7906 | R26: 9034 | S26: 18340 | T26: 19994 | U26: 36934 | V26: 46234 | W26: 47894 | X26: 64834
C27: EBIT Margin | D27: =IF(D12=0,0,D26/D12) -> 0 | E27: 0 | F27: 0 | G27: 0 | H27: 0 | I27: 0 | J27: 0 | K27: 0 | L27: 0 | M27: 0 | N27: 0 | O27: -0.8120454545 | P27: -0.2268674699 | Q27: -0.3029118774 | R27: 0.2551977401 | S27: 0.4102908277 | T27: 0.3702592593 | U27: 0.5834755134 | V27: 0.6368319559 | W27: 0.5847863248 | X27: 0.7108991228
A28: PRELIMINARY SIMPLIFIED CASH FLOW | C28: plus Depreciation | D28: =+D26+D25 -> 0 | E28: 0 | F28: 0 | G28: 0 | H28: 0 | I28: -100.0913242 | J28: -133.4246575 | K28: -133.4246575 | L28: -633.2420091 | M28: 0 | N28: -4446 | O28: -1146 | P28: 6234 | Q28: 8094 | R28: 25034 | S28: 34340 | T28: 35994 | U28: 52934 | V28: 62234 | W28: 63894 | X28: 80834
C29: less total CAPEX | N29: =-('III. Costs'!N23+'III. Costs'!N26) -> -6000 | O29: =-('III. Costs'!O23+'III. Costs'!O26) -> -12000 | P29: =-('III. Costs'!P23+'III. Costs'!P26) -> -12000 | Q29: =-('III. Costs'!Q23+'III. Costs'!Q26) -> -24000 | R29: =-('III. Costs'!R23+'III. Costs'!R26) -> -12000 | S29: =-('III. Costs'!S23+'III. Costs'!S26) -> -12000 | T29: =-('III. Costs'!T23+'III. Costs'!T26) -> -24000 | U29: =-('III. Costs'!U23+'III. Costs'!U26) -> -12000 | V29: =-('III. Costs'!V23+'III. Costs'!V26) -> -12000 | W29: =-('III. Costs'!W23+'III. Costs'!W26) -> -24000 | X29: =-('III. Costs'!X23+'III. Costs'!X26) -> -12000
C30: less change in working capital | N30: =-(N12-M12)*0.05 -> 0 | O30: -440 | P30: -390 | Q30: -475 | R30: -465 | S30: -465 | T30: -465 | U30: -465 | V30: -465 | W30: -465 | X30: -465
B31: With ESA Financial Support (kEur) | C31: Free Cash Flow with ESA | D31: =+D28+D29+D30 -> 0 | E31: 0 | F31: 0 | G31: 0 | H31: 0 | I31: -100.0913242 | J31: -133.4246575 | K31: -133.4246575 | L31: -633.2420091 | M31: 0 | N31: =+N28+N29+N30 -> -10446 | O31: =+O28+O29+O30 -> -13586 | P31: -6156 | Q31: -16381 | R31: 12569 | S31: 21875 | T31: 11529 | U31: 40469 | V31: 49769 | W31: 39429 | X31: 68369
C32: Cumulative Free Cash Flow | D32: =+D31 -> 0 | E32: =+E31+D32 -> 0 | F32: =+F31+E32 -> 0 | G32: 0 | H32: 0 | I32: -100.0913242 | J32: -233.5159817 | K32: -366.9406393 | L32: =+L31+K32 -> -1000.182648 | M32: =+M31+L32 -> -1000.182648 | N32: =+N31+M32 -> -11446.18265 | O32: =+O31+N32 -> -25032.18265 | P32: -31188.18265 | Q32: -47569.18265 | R32: -35000.18265 | S32: -13125.18265 | T32: -1596.182648 | U32: 38872.81735 | V32: 88641.81735 | W32: 128070.8174 | X32: 196439.8174
C33: Discounted Cash Flow with ESA | D33: =IF((D8=-1),0,+(D31/(1+$C$6)^(D$8+1))) -> 0 | E33: 0 | F33: 0 | G33: 0 | H33: 0 | I33: -94.42577755 | J33: -118.7474702 | K33: =IF((K8=-1),0,+(K31/(1+$C$6)^(K$8))) -> -118.7474702 | L33: -531.6822017 | M33: 0 | N33: -7805.858874 | O33: -9577.593902 | P33: -4094.091591 | Q33: -10277.64205 | R33: 7439.571788 | S33: 12214.88575 | T33: 6073.33338 | U33: 20111.85317 | V33: 23333.6493 | W33: =IF((W8=-1),0,+(W31/(1+$C$6)^(W$8+1))) -> 16452.34408 | X33: =IF((X8=-1),0,+(X31/(1+$C$5)^X$8)) -> 68369
B34: Without ESA Financial Support (kEur) | C34: Free Cash Flow without ESA | D34: =+D28+D29+D30+D19 -> 0 | E34: 0 | F34: 0 | G34: 0 | H34: 0 | I34: -425.3881279 | J34: -567.0547945 | K34: -567.0547945 | L34: -741.2785388 | M34: 0 | N34: -10446 | O34: -13586 | P34: -6156 | Q34: -16381 | R34: 12569 | S34: 21875 | T34: 11529 | U34: 40469 | V34: 49769 | W34: 39429 | X34: 68369
C35: Cumulative Free Cash Flow without ESA | D35: =+D34 -> 0 | E35: =+D35+E34 -> 0 | F35: =+E35+F34 -> 0 | G35: 0 | H35: 0 | I35: -425.3881279 | J35: -992.4429224 | K35: -1559.497717 | L35: -2300.776256 | M35: -2300.776256 | N35: -12746.77626 | O35: =+N35+O34 -> -26332.77626 | P35: -32488.77626 | Q35: -48869.77626 | R35: -36300.77626 | S35: -14425.77626 | T35: -2896.776256 | U35: 37572.22374 | V35: 87341.22374 | W35: 126770.2237 | X35: 195139.2237
C36: Discounted Cash Flow without ESA | D36: =IF((D8=-1),0,+(D34/(1+$C$6)^(D$8+1))) -> 0 | E36: 0 | F36: 0 | G36: 0 | H36: 0 | I36: -401.3095546 | J36: -504.6767484 | K36: =IF((K8=-1),0,+(K34/(1+$C$6)^(K$8))) -> -504.6767484 | L36: -622.3917553 | M36: 0 | N36: -7805.858874 | O36: -9577.593902 | P36: -4094.091591 | Q36: -10277.64205 | R36: 7439.571788 | S36: 12214.88575 | T36: 6073.33338 | U36: 20111.85317 | V36: 23333.6493 | W36: =IF((W8=-1),0,+(W34/(1+$C$6)^(W$8+1))) -> 16452.34408 | X36: =IF((X8=-1),0,+(X34/(1+$C$5)^X$8)) -> 68369
D37: =+E37-1 -> 2015 | E37: 2016 | F37: 2017 | G37: 2018 | H37: 2019 | I37: 2020 | J37: 2021 | K37: 2022 | L37: 2023 | M37: =+N37-1 -> 2024 | N37: =+YEAR(N7) -> 2025 | O37: =+N37+1 -> 2026 | P37: =+O37+1 -> 2027 | Q37: 2028 | R37: 2029 | S37: 2030 | T37: 2031 | U37: 2032 | V37: 2033 | W37: 2034 | X37: 2035
B45: II 7 Financial indicators
B47: Fugure 0.2 Financial Indicators with and without ESA Support
B49: With ESA: | C49: =CONCATENATE("Pay Back: at ",Z8) -> Pay Back: at year 12
C50: =CONCATENATE("IRR: ",TEXT(Z9,"##.#%")) -> IRR: 30%
C51: =CONCATENATE("NPV: (kEur) ",TEXT(Z10," #,#" )) -> NPV: (kEur) 82509,2
B73: Without ESA: | C73: =CONCATENATE("Pay Back:at ",Z15) -> Pay Back:at year 12
C74: =CONCATENATE("IRR: ",TEXT(Z16,"##.#%")) -> IRR: 28%
C75: =CONCATENATE("NPV: (kEur)",TEXT(Z17," #,#" )) -> NPV: (kEur) 81298,2
B96: Payback | C96: =+Z8 -> year 12
B97: Payback (since launch) | C97: =CONCATENATE("year ",COUNTIF(INDIRECT(SUPPORT!$D$33),"<0")-N8) -> year 7
B98: Total Revenues | C98: =+SUM(D12:X12)*1000 -> 494600000
B99: Initial investment | C99: =+SUM(D20:P20)-SUM(D29:P29) *1000 -> 30001000.18
B100: Capex (net present) | C100: =-NPV(C6,(D29:X29)) *1000 -> 113168664.2
B101: Expenses (net present) | C101: =NPV(C7,(D21:X21)) *1000 -> 132900776.3
B102: CAPEX + Expenses (net present) | C102: =+C101+C100 -> 246069440.5
B103: Taxes (net present) | C103: =C102*'I.Input Data'!C109 -> 61517360.12
B104: Total cost (net present) | C104: =+C103+C102 -> 307586800.6
B105: NPV (with ESA support) | C105: =+Z10*1000 -> 82509193.31
B106: IRR (with ESA support) | C106: =+Z9 -> 0.2987195096

Sheet Depreciation
B1: Depreciation Calculation
B3: This worksheet is used to calculate capital depreciation based on the data provided in the "III. Costs" worksheet.
B4: Straight line depreciation is calculated using the "Lifetime" defined in the "III-Costs" worksheet.
D7: Lifetime | E7: Depr. Rate
D8: =+'I.Input Data'!M111 -> 3 | E8: =1/D8 -> 0.3333333333 | F8: =+'I.Input Data'!G35 -> 2025-01-01 | G8: Commercial Exploitation Phase
F9: 0 | G9: 1 | H9: 2 | I9: 3 | J9: 4 | K9: 5 | L9: 6 | M9: 7 | N9: 8 | O9: 9 | P9: 10 | Q9: =+P9+1 -> 11 | R9: =+Q9+1 -> 12 | S9: =+R9+1 -> 13 | T9: =+S9+1 -> 14 | U9: =+T9+1 -> 15
C10: =+'III. Costs'!C23 -> Total investment 3y | F10: =+'III. Costs'!N23 -> 6000 | G10: =+'III. Costs'!O23 -> 12000 | H10: =+'III. Costs'!P23 -> 12000 | I10: =+'III. Costs'!Q23 -> 24000 | J10: =+'III. Costs'!R23 -> 12000 | K10: =+'III. Costs'!S23 -> 12000 | L10: =+'III. Costs'!T23 -> 24000 | M10: =+'III. Costs'!U23 -> 12000 | N10: =+'III. Costs'!V23 -> 12000 | O10: =+'III. Costs'!W23 -> 24000 | P10: =+'III. Costs'!X23 -> 12000
C11: Cumulative CAPEX (at Start of the Year) | F11: =+F10 -> 6000 | G11: =+G10+F11 -> 18000 | H11: =+G11+H10 -> 30000 | I11: 54000 | J11: 66000 | K11: 78000 | L11: 102000 | M11: 114000 | N11: 126000 | O11: 150000 | P11: 162000 | Q11: 162000 | R11: 162000 | S11: 162000 | T11: 162000 | U11: 162000
D12: =+F9 -> 0 | E12: =+F10 -> 6000 | F12: =IF(F$9=$D12,$E12/$D$8,IF(F$9>=$D12+$D$8,0,IF(F$9<$D12,0,$E12/$D$8))) -> 2000 | G12: 2000 | H12: 2000 | I12: 0 | J12: 0 | K12: 0 | L12: 0 | M12: 0 | N12: 0 | O12: 0 | P12: 0 | Q12: 0 | R12: 0 | S12: 0 | T12: 0 | U12: 0
D13: =+G9 -> 1 | E13: =+G10 -> 12000 | F13: 0 | G13: 4000 | H13: 4000 | I13: 4000 | J13: 0 | K13: 0 | L13: 0 | M13: 0 | N13: 0 | O13: 0 | P13: 0 | Q13: 0 | R13: 0 | S13: 0 | T13: 0 | U13: 0
D14: =+H9 -> 2 | E14: =+H10 -> 12000 | F14: 0 | G14: 0 | H14: 4000 | I14: 4000 | J14: 4000 | K14: 0 | L14: 0 | M14: 0 | N14: 0 | O14: 0 | P14: 0 | Q14: 0 | R14: 0 | S14: 0 | T14: 0 | U14: 0
D15: =+I9 -> 3 | E15: =+I10 -> 24000 | F15: 0 | G15: 0 | H15: 0 | I15: 8000 | J15: 8000 | K15: 8000 | L15: 0 | M15: 0 | N15: 0 | O15: 0 | P15: 0 | Q15: 0 | R15: 0 | S15: 0 | T15: 0 | U15: 0
D16: =+J9 -> 4 | E16: =+J10 -> 12000 | F16: 0 | G16: 0 | H16: 0 | I16: 0 | J16: 4000 | K16: 4000 | L16: 4000 | M16: 0 | N16: 0 | O16: 0 | P16: 0 | Q16: 0 | R16: 0 | S16: 0 | T16: 0 | U16: 0
D17: =+K9 -> 5 | E17: =+K10 -> 12000 | F17: 0 | G17: 0 | H17: 0 | I17: 0 | J17: 0 | K17: 4000 | L17: 4000 | M17: 4000 | N17: 0 | O17: 0 | P17: 0 | Q17: 0 | R17: 0 | S17: 0 | T17: 0 | U17: 0
D18: =+L9 -> 6 | E18: =+L10 -> 24000 | F18: 0 | G18: 0 | H18: 0 | I18: 0 | J18: 0 | K18: 0 | L18: 8000 | M18: 8000 | N18: 8000 | O18: 0 | P18: 0 | Q18: 0 | R18: 0 | S18: 0 | T18: 0 | U18: 0
D19: =+M9 -> 7 | E19: =+M10 -> 12000 | F19: 0 | G19: 0 | H19: 0 | I19: 0 | J19: 0 | K19: 0 | L19: 0 | M19: 4000 | N19: 4000 | O19: 4000 | P19: 0 | Q19: 0 | R19: 0 | S19: 0 | T19: 0 | U19: 0
D20: =+N9 -> 8 | E20: =+N10 -> 12000 | F20: 0 | G20: 0 | H20: 0 | I20: 0 | J20: 0 | K20: 0 | L20: 0 | M20: 0 | N20: 4000 | O20: 4000 | P20: 4000 | Q20: 0 | R20: 0 | S20: 0 | T20: 0 | U20: 0
D21: =+O9 -> 9 | E21: =+O10 -> 24000 | F21: 0 | G21: 0 | H21: 0 | I21: 0 | J21: 0 | K21: 0 | L21: 0 | M21: 0 | N21: 0 | O21: 8000 | P21: 8000 | Q21: 8000 | R21: 0 | S21: 0 | T21: 0 | U21: 0
D22: =+P9 -> 10 | E22: =+P10 -> 12000 | F22: =IF(F$9=$D22,$E22/$D$8,IF(F$9>=$D22+$D$8,0,IF(F$9<$D22,0,$E22/$D$8))) -> 0 | G22: 0 | H22: 0 | I22: 0 | J22: 0 | K22: 0 | L22: 0 | M22: 0 | N22: 0 | O22: 0 | P22: 4000 | Q22: 4000 | R22: 4000 | S22: 0 | T22: 0 | U22: 0
D23: =+Q9 -> 11 | E23: =+Q10 -> 0 | F23: 0 | G23: 0 | H23: 0 | I23: 0 | J23: 0 | K23: 0 | L23: 0 | M23: 0 | N23: 0 | O23: 0 | P23: 0 | Q23: 0 | R23: 0 | S23: 0 | T23: 0 | U23: 0
D24: =+R9 -> 12 | E24: =+R10 -> 0 | F24: 0 | G24: 0 | H24: 0 | I24: 0 | J24: 0 | K24: 0 | L24: 0 | M24: 0 | N24: 0 | O24: 0 | P24: 0 | Q24: 0 | R24: 0 | S24: 0 | T24: 0 | U24: 0
D25: =+S9 -> 13 | E25: =+S10 -> 0 | F25: 0 | G25: 0 | H25: 0 | I25: 0 | J25: 0 | K25: 0 | L25: 0 | M25: 0 | N25: 0 | O25: 0 | P25: 0 | Q25: 0 | R25: 0 | S25: 0 | T25: 0 | U25: 0
D26: =+T9 -> 14 | E26: =+T10 -> 0 | F26: 0 | G26: 0 | H26: 0 | I26: 0 | J26: 0 | K26: 0 | L26: 0 | M26: 0 | N26: 0 | O26: 0 | P26: 0 | Q26: 0 | R26: 0 | S26: 0 | T26: 0 | U26: 0
D27: =+U9 -> 15 | E27: =+U10 -> 0 | F27: 0 | G27: 0 | H27: 0 | I27: 0 | J27: 0 | K27: 0 | L27: 0 | M27: 0 | N27: 0 | O27: 0 | P27: 0 | Q27: 0 | R27: 0 | S27: 0 | T27: 0 | U27: 0
C28: Book Value (at End of the Year) | F28: =IF(F$9=$D28,$E28/$D$8,IF(F$9>=$D28+$D$8,0,IF(F$9<$D28,0,$E28/$D$8))) -> 0 | G28: =+G11-G29 -> 10000 | H28: =+H11-H29 -> 12000 | I28: 20000 | J28: 16000 | K28: 12000 | L28: 20000 | M28: 16000 | N28: 12000 | O28: 20000 | P28: 16000 | Q28: 4000 | R28: 0 | S28: 0 | T28: 0 | U28: 0
C29: Cumulative Depreciation | G29: =+G30+F30 -> 8000 | H29: =+H30+G29 -> 18000 | I29: 34000 | J29: 50000 | K29: 66000 | L29: 82000 | M29: 98000 | N29: 114000 | O29: 130000 | P29: 146000 | Q29: 158000 | R29: 162000 | S29: 162000 | T29: 162000 | U29: 162000
C30: Depreciation | F30: =SUM(F12:F29) -> 2000 | G30: =SUM(G12:G27) -> 6000 | H30: 10000 | I30: 16000 | J30: 16000 | K30: 16000 | L30: 16000 | M30: 16000 | N30: 16000 | O30: 16000 | P30: =SUM(P12:P27) -> 16000 | Q30: 12000 | R30: 4000 | S30: 0 | T30: 0 | U30: 0
D32: Lifetime | E32: Depr. Rate
D33: =+'I.Input Data'!M114 -> 7 | E33: =1/D33 -> 0.1428571429 | F33: =+'I.Input Data'!G35 -> 2025-01-01 | G33: Commercial Exploitation Phase
F34: 0 | G34: 1 | H34: 2 | I34: 3 | J34: 4 | K34: 5 | L34: 6 | M34: 7 | N34: 8 | O34: 9 | P34: 10 | Q34: =+P34+1 -> 11 | R34: =+Q34+1 -> 12 | S34: =+R34+1 -> 13 | T34: =+S34+1 -> 14 | U34: =+T34+1 -> 15
C35: =+'III. Costs'!C26 -> Total investment 7y | F35: =+'III. Costs'!N26 -> 0 | G35: =+'III. Costs'!O26 -> 0 | H35: =+'III. Costs'!P26 -> 0 | I35: =+'III. Costs'!Q26 -> 0 | J35: =+'III. Costs'!R26 -> 0 | K35: =+'III. Costs'!S26 -> 0 | L35: =+'III. Costs'!T26 -> 0 | M35: =+'III. Costs'!U26 -> 0 | N35: =+'III. Costs'!V26 -> 0 | O35: =+'III. Costs'!W26 -> 0 | P35: =+'III. Costs'!X26 -> 0
C36: Cumulative CAPEX (at Start of the Year) | F36: =+F35 -> 0 | G36: =+G35+F36 -> 0 | H36: =+G36+H35 -> 0 | I36: 0 | J36: 0 | K36: 0 | L36: 0 | M36: 0 | N36: 0 | O36: 0 | P36: 0 | Q36: 0 | R36: 0 | S36: 0 | T36: 0 | U36: 0
D37: =+F34 -> 0 | E37: =+F36 -> 0 | F37: =IF(F$34=$D37,$E37/$D$33,IF(F$34>=$D37+$D$33,0,IF(F$34<$D37,0,$E37/$D$33))) -> 0 | G37: 0 | H37: 0 | I37: 0 | J37: 0 | K37: 0 | L37: 0 | M37: 0 | N37: 0 | O37: 0 | P37: 0 | Q37: 0 | R37: 0 | S37: 0 | T37: 0 | U37: 0
D38: =+G34 -> 1 | E38: =+G35 -> 0 | F38: 0 | G38: 0 | H38: 0 | I38: 0 | J38: 0 | K38: 0 | L38: 0 | M38: 0 | N38: 0 | O38: 0 | P38: 0 | Q38: 0 | R38: 0 | S38: 0 | T38: 0 | U38: 0
D39: =+H34 -> 2 | E39: =+H35 -> 0 | F39: 0 | G39: 0 | H39: 0 | I39: 0 | J39: 0 | K39: 0 | L39: 0 | M39: 0 | N39: 0 | O39: 0 | P39: 0 | Q39: 0 | R39: 0 | S39: 0 | T39: 0 | U39: 0
D40: =+I34 -> 3 | E40: =+I35 -> 0 | F40: 0 | G40: 0 | H40: 0 | I40: 0 | J40: 0 | K40: 0 | L40: 0 | M40: 0 | N40: 0 | O40: 0 | P40: 0 | Q40: 0 | R40: 0 | S40: 0 | T40: 0 | U40: 0
D41: =+J34 -> 4 | E41: =+J35 -> 0 | F41: 0 | G41: 0 | H41: 0 | I41: 0 | J41: 0 | K41: 0 | L41: 0 | M41: 0 | N41: 0 | O41: 0 | P41: 0 | Q41: 0 | R41: 0 | S41: 0 | T41: 0 | U41: 0
D42: =+K34 -> 5 | E42: =+K35 -> 0 | F42: 0 | G42: 0 | H42: 0 | I42: 0 | J42: 0 | K42: 0 | L42: 0 | M42: 0 | N42: 0 | O42: 0 | P42: 0 | Q42: 0 | R42: 0 | S42: 0 | T42: 0 | U42: 0
D43: =+L34 -> 6 | E43: =+L35 -> 0 | F43: 0 | G43: 0 | H43: 0 | I43: 0 | J43: 0 | K43: 0 | L43: 0 | M43: 0 | N43: 0 | O43: 0 | P43: 0 | Q43: 0 | R43: 0 | S43: 0 | T43: 0 | U43: 0
D44: =+M34 -> 7 | E44: =+M35 -> 0 | F44: 0 | G44: 0 | H44: 0 | I44: 0 | J44: 0 | K44: 0 | L44: 0 | M44: 0 | N44: 0 | O44: 0 | P44: 0 | Q44: 0 | R44: 0 | S44: 0 | T44: 0 | U44: 0
D45: =+N34 -> 8 | E45: =+N35 -> 0 | F45: 0 | G45: 0 | H45: 0 | I45: 0 | J45: 0 | K45: 0 | L45: 0 | M45: 0 | N45: 0 | O45: 0 | P45: 0 | Q45: 0 | R45: 0 | S45: 0 | T45: 0 | U45: 0
D46: =+O34 -> 9 | E46: =+O35 -> 0 | F46: 0 | G46: 0 | H46: 0 | I46: 0 | J46: 0 | K46: 0 | L46: 0 | M46: 0 | N46: 0 | O46: 0 | P46: 0 | Q46: 0 | R46: 0 | S46: 0 | T46: 0 | U46: 0
D47: =+P34 -> 10 | E47: =+P35 -> 0 | F47: =IF(F$34=$D47,$E47/$D$33,IF(F$34>=$D47+$D$33,0,IF(F$34<$D47,0,$E47/$D$33))) -> 0 | G47: 0 | H47: 0 | I47: 0 | J47: 0 | K47: 0 | L47: 0 | M47: 0 | N47: 0 | O47: 0 | P47: 0 | Q47: 0 | R47: 0 | S47: 0 | T47: 0 | U47: 0
D48: =+Q34 -> 11 | E48: =+Q35 -> 0 | F48: 0 | G48: 0 | H48: 0 | I48: 0 | J48: 0 | K48: 0 | L48: 0 | M48: 0 | N48: 0 | O48: 0 | P48: 0 | Q48: 0 | R48: 0 | S48: 0 | T48: 0 | U48: 0
D49: =+R34 -> 12 | E49: =+R35 -> 0 | F49: 0 | G49: 0 | H49: 0 | I49: 0 | J49: 0 | K49: 0 | L49: 0 | M49: 0 | N49: 0 | O49: 0 | P49: 0 | Q49: 0 | R49: 0 | S49: 0 | T49: 0 | U49: 0
D50: =+S34 -> 13 | E50: =+S35 -> 0 | F50: 0 | G50: 0 | H50: 0 | I50: 0 | J50: 0 | K50: 0 | L50: 0 | M50: 0 | N50: 0 | O50: 0 | P50: 0 | Q50: 0 | R50: 0 | S50: 0 | T50: 0 | U50: 0
D51: =+T34 -> 14 | E51: =+T35 -> 0 | F51: 0 | G51: 0 | H51: 0 | I51: 0 | J51: 0 | K51: 0 | L51: 0 | M51: 0 | N51: 0 | O51: 0 | P51: 0 | Q51: 0 | R51: 0 | S51: 0 | T51: 0 | U51: 0
D52: =+U34 -> 15 | E52: =+U35 -> 0 | F52: 0 | G52: 0 | H52: 0 | I52: 0 | J52: 0 | K52: 0 | L52: 0 | M52: 0 | N52: 0 | O52: 0 | P52: 0 | Q52: 0 | R52: 0 | S52: 0 | T52: 0 | U52: 0
C53: Book Value (at End of the Year) | F53: =IF(F$9=$D53,$E53/$D$8,IF(F$9>=$D53+$D$8,0,IF(F$9<$D53,0,$E53/$D$8))) -> 0 | G53: =+G36-G54 -> 0 | H53: 0 | I53: 0 | J53: 0 | K53: 0 | L53: 0 | M53: 0 | N53: 0 | O53: 0 | P53: 0 | Q53: 0 | R53: 0 | S53: 0 | T53: 0 | U53: 0
C54: Cumulative Depreciation | G54: =+G55+F55 -> 0 | H54: =+H55+G54 -> 0 | I54: 0 | J54: 0 | K54: 0 | L54: 0 | M54: 0 | N54: 0 | O54: 0 | P54: 0 | Q54: 0 | R54: 0 | S54: 0 | T54: 0 | U54: 0
C55: Depreciation | F55: =SUM(F37:F52) -> 0 | G55: 0 | H55: 0 | I55: 0 | J55: 0 | K55: 0 | L55: 0 | M55: 0 | N55: 0 | O55: 0 | P55: 0 | Q55: 0 | R55: 0 | S55: 0 | T55: 0 | U55: 0
B61: TOTAL DEPRECIATION | F61: =+F55+F30 -> 2000 | G61: 6000 | H61: 10000 | I61: 16000 | J61: 16000 | K61: 16000 | L61: 16000 | M61: 16000 | N61: 16000 | O61: 16000 | P61: =+P55+P30 -> 16000 | Q61: 12000 | R61: 4000 | S61: 0 | T61: 0 | U61: 0

Sheet SUPPORT
B1: D | C1: This worksheet is used to identify the range of years to be considered for the financial indicators
B2: E
B3: F
B4: G
B5: H
B6: I | H6: SME
B7: J | H7: Large
B8: K | H8: University
B9: L | H9: YES | I9: NO
B10: M | H10: NO | I10: YES
B11: N | H11: YES
B12: O
B13: P
B14: Q
B15: R
B16: S
B17: T
B18: U
B19: V
B20: W
B21: X
C22: Column position for Year 0 | D22: =MATCH(0,'IV. Profit&Loss + Cash Flow'!D8:X8) -> 6
C23: Column identification for Year 0 | D23: =INDEX($B$1:$B$21,$D$22) -> I
C24: Column identification for Year 1 | D24: =INDEX($B$1:$B$21,$D$22+1) -> J
C26: Year range | D26: =CONCATENATE($D$23,"8:X8") -> I8:X8
C28: Cumulative cash flow without ESA | D28: =CONCATENATE($D$23,"35:",$D$41,"35") -> I35:X35
C29: Free cash flow without ESA | D29: =CONCATENATE($D$23,"34:",$D$41,"34") -> I34:X34
C30: Free cash flow without ESA (excl. Yo) | D30: =CONCATENATE($D$24,"34:",$D$41,"34") -> J34:X34
C31: Yo cash flow without ESA | D31: =CONCATENATE($D$23,"34") -> I34
C33: Cumulative cash flow with ESA | D33: =CONCATENATE($D$23,"32:",$D$41,"32") -> I32:X32
C34: Free cash flow with ESA | D34: =CONCATENATE($D$23,"31:",$D$41,"31") -> I31:X31
C35: Free cash flow with ESA (excl. Yo) | D35: =CONCATENATE($D$24,"31:",$D$41,"31") -> J31:X31
C36: Yo cash flow with ESA | D36: =CONCATENATE($D$23,"31") -> I31
C38: Full duration in years (development + commercialisation) | D38: ='IV. Profit&Loss + Cash Flow'!N8+'I.Input Data'!J35 -> 16.00273973
C40: Column position for end of Commercial Phase | D40: =D22+D38-1 -> 21.00273973
C41: Column identification for end of Commercial Phase | D41: =INDEX($B$1:$B$21,$D$40) -> X

Sheet Change Log
A1: Version | B1: Date | C1: Notes
A2: 1.0 | B2: 2019-05-21 | C2: First version published
A3: 1.1 | B3: 2019-06-13 | C3: Updated tables numbering/ corrected graphs data input and format
A4: 1.2 | B4: 2019-07-09 | C4: Change in the conditional formatting of table 4 ; graphs format improved
A5: 2.0 | B5: 2019-10-09 | C5: Adaptation for InCubed+
A6: 2.1 | B6: 2020-02-20 | C6: Includes constellation planning
